Cogmind - Beta 16 @@@ ROGUE MODE // 2025.11.07 @ 02:55:03 Player: chebyrekser Result: Destroyed by P-80 Master with Gamma Rifle Performance ------------- Evolutions (9) 4500 Regions Visited (26) 5200 Robots Destroyed (447) 2235 Value Destroyed (23952) 23952 Prototype IDs (77) 1540 Alien Tech Used (12) 2400 Bonus (26103) 26103 TOTAL SCORE: 65930 Bonus ------- Triggered High Security 500 High Alert Combat Kills 6876 Follower Combat Kills 1898 Network Hubs Disabled 400 Registered with UFD 300 Met Data Miner 300 Met Zhirov 300 Built Enhanced Grunts 300 Met R17 at Cetus 500 Used Core Reset Matrix 3000 Met R17 at Research 2000 Destroyed MAIN.C Guards 500 Met MAIN.C 5000 Destroyed MAIN.C Shell 5000 Friendly Fire -771 Cogmind --------- Core Integrity 0/1850 Matter 300/300 Energy 183/1200 System Corruption 0% +Membrane Temperature Warm (186) Movement Immobile (Siege) Ox1 Location -1/Command Parts ------- > --- POWER (3) -------- Reinforced Quantum Reactor Vortex Chain Reactor > --- PROPULSION (6) --- High-density Centrium Heavy Treads > --- UTILITY (13) ----- Advanced Cooling System Advanced Coolant Injector High-capacity Storage Unit Enhanced Optical Array Experimental Targeting Computer Core Analyzer Quantum Capacitor (fused) Microactuators Graphene Brace > --- WEAPON (3) ------- Core Cannon > --- INVENTORY (20) --- Advanced Matter Compressor (400) Advanced Sensor Array Advanced Transmission Jammer Advanced Transmission Jammer Advanced Force Field Advanced Point Defense System Compact HERF Cannon Enhanced Nova Cannon Core Cannon Graviton Cannon Mini Smartbomb Launcher Peak State ------------ > --- POWER ------------ Quantum Reactor Reinforced Quantum Reactor Reinforced Quantum Reactor > --- PROPULSION ------- Biometal Heavy Treads Advanced Heavy Siege Treads High-density Centrium Heavy Treads > --- UTILITY ---------- Experimental Cooling System High-capacity Storage Unit Enhanced Optical Array Advanced Signal Interpreter Experimental Targeting Computer Core Analyzer Quantum Capacitor Advanced Transmission Jammer Centrium Medium Armor Plating Centrium Medium Armor Plating Experimental EM Shield Advanced Component Analysis Suite > --- WEAPON ----------- Heavy Quantum Rifle Multirail Multirail > --- INVENTORY -------- Reinforced Quantum Reactor Vortex Chain Reactor High-density Centrium Heavy Treads Advanced Matter Compressor Graphene Brace Advanced Force Field Advanced Force Field Transdimensional Reconstructor Integrity Redistributor Subatomic Replicator Compact HERF Cannon Enhanced Nova Cannon Disintegrator Core Cannon Graviton Cannon Mini Smartbomb Launcher [Rating: 229] Favorites ----------- Power Antimatter Reactor Engine Improved Ion Engine Power Core Fission Core Reactor Antimatter Reactor Propulsion Armored Huge Wheel Treads Light Treads Leg Biometal Leg Wheel Armored Huge Wheel Flight Unit Field Propulsion Drive Utility Huge Storage Unit Device Seismic Detector Storage Huge Storage Unit Processor Enhanced Optical Array Hackware Advanced System Shield Protection Enhanced Scrap Shield Weapon Multirail Energy Gun Medium Laser Energy Cannon Long-range Proton Cannon Ballistic Gun Multirail Ballistic Cannon Battle Cannon Launcher Subdweller Shrapnel Launcher Special Weapon Junk Cannon Impact Weapon Heavy Mace Slashing Weapon Makeshift Axe Piercing Weapon Lance Build | -11 -10 -10 -9 -9 -6 -6 -6 -6 -5 -5 -5 -5 -5 -5 -4 -4 -4 -4 -3 -3 -3 -2 -2 -2 -1 -1 ------- Run | Yrd Mat Sub Rec Scr Fac Low Low Dat Pro Fac Ext Cet Arc Hub Fac Upp Upp Zhi Pro Res Qua Res Tes Sec Acc Com Slots Evolved 18 | . . . . . 8 . . . . 2 . . . . 2 . . . . 2 . 2 . . 2 . Power 2 | . . . . . . . . . . 1 . . . . . . . . . . . 1 . . . . Propulsion 4 | . . . . . 3 . . . . 1 . . . . . . . . . . . . . . . . Utility 11 | . . . . . 4 . . . . . . . . . 2 . . . . 2 . 1 . . 2 . Weapon 1 | . . . . . 1 . . . . . . . . . . . . . . . . . . . . . Parts Attached 253 | 8 6 17 4 6 23 1 3 . 1 6 3 8 10 6 13 4 1 1 9 27 16 3 16 25 18 18 Power 27 | 1 . 5 . . 1 . 1 . . 1 1 2 1 . . . . 1 . 5 . . 4 2 1 1 Engine 9 | 1 . 5 . . . . 1 . . . . . . . . . . . . 2 . . . . . . Core 3 | . . . . . 1 . . . . 1 1 . . . . . . . . . . . . . . . Reactor 15 | . . . . . . . . . . . . 2 1 . . . . 1 . 3 . . 4 2 1 1 Propulsion 52 | 3 2 4 . . 9 . . . . 1 1 1 3 . 2 . . . 2 7 3 1 4 4 3 2 Treads 28 | 2 . 4 . . 3 . . . . . . 1 3 . 2 . . . . 1 . . 3 4 3 2 Leg 11 | . . . . . . . . . . . . . . . . . . . . 6 3 1 1 . . . Wheel 12 | 1 2 . . . 6 . . . . 1 1 . . . . . . . 1 . . . . . . . Hover . | . . . . . . . . . . . . . . . . . . . . . . . . . . . Flight 1 | . . . . . . . . . . . . . . . . . . . 1 . . . . . . . Utility 115 | 2 1 3 1 4 9 . 1 . 1 4 1 1 5 5 8 2 . . 6 11 7 1 5 12 12 13 Device 58 | 1 . 1 . 1 4 . . . . 3 . . 5 3 4 1 . . 2 6 6 1 3 5 5 7 Storage 11 | 1 1 . 1 1 . . . . . . . . . 1 . . . . . 4 1 . . . . 1 Processor 14 | . . . . . 1 . 1 . 1 . . . . . 1 1 . . 3 . . . . 3 2 1 Hackware 4 | . . . . . . . . . . . . . . . 2 . . . 1 . . . . . 1 . Protection 28 | . . 2 . 2 4 . . . . 1 1 1 . 1 1 . . . . 1 . . 2 4 4 4 Artifact . | . . . . . . . . . . . . . . . . . . . . . . . . . . . Weapon 59 | 2 3 5 3 2 4 1 1 . . . . 4 1 1 3 2 1 . 1 4 6 1 3 7 2 2 Energy Gun 9 | 1 1 1 1 . 1 . . . . . . 1 . . . . . . . . . . . 2 . 1 Energy Cannon 15 | . . 2 . . . . 1 . . . . 3 . . . . . . . . 2 1 2 2 1 1 Ballistic Gun 11 | 1 1 1 1 . . . . . . . . . 1 . 1 . . . 1 2 . . . 2 . . Ballistic Cannon 10 | . . 1 . . . . . . . . . . . . 1 1 1 . . . 3 . 1 1 1 . Launcher 5 | . . . . . 2 . . . . . . . . . 1 1 . . . 1 . . . . . . Special Weapon 5 | . 1 . 1 2 . . . . . . . . . 1 . . . . . . . . . . . . Impact Weapon 1 | . . . . . 1 . . . . . . . . . . . . . . . . . . . . . Slashing Weapon 2 | . . . . . . 1 . . . . . . . . . . . . . . 1 . . . . . Piercing Weapon 1 | . . . . . . . . . . . . . . . . . . . . 1 . . . . . . Special Melee Weapon . | . . . . . . . . . . . . . . . . . . . . . . . . . . . Unidentified Prototypes 27 | . . . . 1 . . . . . 1 . 3 1 1 . . . 1 1 1 . . 11 6 . . Corrupted Parts 11 | . . . . . . . . . . . . . 5 . . . . . 1 . 5 . . . . . System Corruption 67 | . . . . . . . . . . . . . 23 . . . . . 10 . 34 . . . . . Parts Lost 56 | . . 7 . . 2 . . . 2 1 3 . 1 . 2 1 1 . 15 . . . 2 3 4 12 Power 9 | . . 3 . . . . . . . . 2 . . . . . . . 2 . . . 1 . . 1 Propulsion 14 | . . 3 . . 1 . . . 1 . 1 . . . 1 . . . 4 . . . . . . 3 Utility 21 | . . . . . 1 . . . 1 1 . . 1 . 1 . . . 4 . . . . 2 4 6 Weapon 12 | . . 1 . . . . . . . . . . . . . 1 1 . 5 . . . 1 1 . 2 Highest Loss Streak 9 | . . 5 . . 2 . . . 1 1 2 . 1 . 1 1 1 . 8 . . . 1 1 2 9 To Critical Strikes 1 | . . . . . . . . . . . 1 . . . . . . . . . . . . . . . Average Backups 18 | 5 11 22 22 20 18 18 19 20 19 20 21 19 19 19 19 19 21 21 11 9 18 18 17 15 15 14 Power 1 | . 1 1 1 . . 1 1 1 1 . . 1 1 2 2 2 2 2 1 . 1 2 1 1 1 1 Propulsion 2 | 3 6 5 3 3 2 2 3 3 3 2 1 2 2 3 2 2 2 2 . . 2 1 1 1 1 . Utility 7 | . 1 7 7 7 9 8 8 9 8 8 8 8 9 8 6 8 9 8 4 5 9 8 8 7 4 5 Weapon 5 | 1 2 7 7 6 5 5 5 6 6 7 9 5 4 5 6 6 7 7 3 2 3 5 4 3 5 5 Tool/Special . | . . . . . . . . . . . . . . . . . . . . . . . . . . . Unused Backups 66 | . . 7 2 7 3 . 2 . . 2 7 5 1 3 2 . . 1 3 1 7 . 5 1 2 5 Power 6 | . . . . . 1 . . . . . . 1 . . . . . . 1 . . . 2 . . 1 Propulsion 12 | . . 5 . 1 . . . . . . 1 1 . . . . . . . . 1 . 2 . . 1 Utility 27 | . . 1 2 4 1 . . . . 1 3 1 . 2 1 . . 1 . 1 3 . 1 1 1 3 Weapon 19 | . . 1 . 1 1 . 2 . . 1 3 2 1 1 1 . . . 1 . 3 . . . 1 . Tool/Special 2 | . . . . 1 . . . . . . . . . . . . . . 1 . . . . . . . Average Slot Usage (%) 84 | . 100 99 100 93 77 71 71 61 66 69 69 69 61 76 83 81 80 68 57 76 91 85 83 72 83 77 Engine 5 | . 14 13 14 13 3 6 6 6 6 5 3 . . . . . . . . . . . . . . . Reactor 4 | . . . . . . . . . . . . 10 7 11 10 10 10 10 3 5 9 8 11 9 12 11 Treads 10 | . 17 14 14 14 4 . . . . . . 1 4 5 14 21 21 21 12 . . . 2 12 12 11 Leg 3 | . . . . . . . . . . . . . . . . . . . . 16 28 26 20 . . . Wheel 8 | . 10 13 14 12 17 20 20 20 15 17 17 15 11 11 4 . . . 1 . . . . . . . Device 11 | . 14 11 13 6 14 11 11 6 4 4 5 4 7 5 11 9 9 5 9 11 10 12 13 14 20 20 Storage 7 | . 14 14 14 13 6 6 6 6 6 5 5 5 5 5 5 5 5 5 3 2 4 4 4 4 4 4 Processor 8 | . . . . . 5 6 6 13 13 11 11 11 11 9 9 14 15 15 15 19 14 13 13 13 14 14 Protection 4 | . . 2 . 7 8 6 6 6 6 5 5 5 1 5 5 5 5 10 3 2 4 4 5 6 7 3 Energy Gun 3 | . 14 2 3 9 1 . 1 . 4 . . . 3 3 . . . . . . . . . . 3 1 Energy Cannon 4 | . . 11 13 . . . 2 . . 4 4 10 3 12 7 2 6 . . . 6 8 7 3 . 4 Ballistic Gun 4 | . 13 13 4 2 . . . . . . . . . . 3 7 3 . . 3 5 4 1 3 7 5 Ballistic Cannon 1 | . . . . 6 . . . . . . . . . . 3 1 . . 4 . . . . 2 . . Special Weapon 1 | . . . 5 4 5 6 6 . 6 5 5 . . . . . . . . . . . . . . . Peak Build Rating 229 | 7 8 17 17 27 64 61 67 66 67 89 91 112 112 117 144 148 146 144 146 152 160 169 215 220 229 212 Average Rating 92 | 6 7 12 14 18 54 59 65 51 65 81 87 94 89 110 132 140 137 127 93 109 154 166 184 209 220 203 On Entrance 98 | . 7 8 14 14 27 55 57 66 66 67 84 85 112 108 110 144 146 138 144 92 152 158 169 211 212 210 Avg Prop Armor Cover (%) 12 | 3 . 13 13 10 9 . . . . . . 6 11 5 9 . . . 37 14 . . 6 . . 5 Naked Turns . | . . . . . . . . . . . . . . . . . . . . . . . . . . . Heaviest Build 214 | 11 88 100 103 108 132 126 138 132 136 147 147 154 150 158 162 159 159 157 159 109 123 124 172 183 200 214 Greatest Support 270 | 40 40 40 16 40 66 66 66 66 66 84 84 84 80 56 217 217 217 217 217 162 162 167 270 270 245 210 Greatest Overweight (x) 6 | 2 2 6 6 6 3 1 2 1 2 1 1 2 2 2 5 . . . 4 1 . . 1 1 . 1 Average Overweight (x) 1 | . 1 5 5 4 1 1 1 1 1 1 1 1 1 2 3 . . . . . . . . . . . Largest Inventory Capacity 25 | 8 25 25 25 25 25 25 25 25 25 25 25 25 25 25 25 25 25 25 25 20 20 20 20 20 20 20 Average Capacity 22 | 7 18 25 25 23 25 25 25 25 25 25 25 25 25 25 25 25 25 25 16 12 20 20 20 20 20 20 Most Carried 25 | 8 19 25 25 25 25 25 25 25 25 25 25 25 25 25 25 25 25 25 25 20 20 20 20 20 20 20 Average Carried 21 | 6 11 23 24 22 23 23 24 25 24 24 24 23 23 24 24 23 25 24 13 11 19 19 19 19 19 18 Final Capacity 25 | 8 25 25 25 25 25 25 25 25 25 25 25 25 25 25 25 25 25 25 5 20 20 20 20 20 20 20 Final Carried 25 | 8 19 25 25 25 21 25 25 25 24 24 23 25 25 25 23 25 25 24 5 20 20 20 20 20 20 12 Class Distribution -------------------- 35% | Mutant 13% | Scavenger-Tank 10% | Alien-Tank 9% | Scavenger-Mutant 5% | Skirmisher 4% | Tank 4% | Scientist-Skirmisher 3% | Scavenger-Skirmisher Dominant Class ---------------- Mutant | -10/Materials Mutant | -10/Subcaves Scavenger-Mutant | -9/Recycling Mutant | -9/Scraptown Mutant | -6/Factory Mutant | -6/Lower Caves Skirmisher | -6/Lower Caves Mutant | -6/Data Miner Tank | -5/Proximity Caves Tank | -5/Factory Skirmisher | -5/Extension Mutant | -5/Cetus Commander-Mutant | -5/Archives Scavenger-Tank | -5/Hub_04(d) Scavenger-Tank | -4/Factory Scavenger-Skirmisher | -4/Upper Caves Scavenger-Skirmisher | -4/Upper Caves Scavenger-Mutant | -4/Zhirov Skirmisher | -3/Proximity Caves Scavenger-Assassin | -3/Research Skirmisher | -3/Quarantine Scientist-Skirmisher | -2/Research Scientist-Skirmisher | -2/Testing Scavenger-Tank | -2/Section 7 Alien-Tank | -1/Access Alien-Tank | -1/Command Resources | -11 -10 -10 -9 -9 -6 -6 -6 -6 -5 -5 -5 -5 -5 -5 -4 -4 -4 -4 -3 -3 -3 -2 -2 -2 -1 -1 ----------- Run | Yrd Mat Sub Rec Scr Fac Low Low Dat Pro Fac Ext Cet Arc Hub Fac Upp Upp Zhi Pro Res Qua Res Tes Sec Acc Com Matter Collected 13029 | 328 306 570 212 200 448 223 178 . 124 290 433 135 217 401 817 274 226 . 461 506 850 189 982 1721 2177 761 Remotely 20 | . . . . . . . . . . . . . . . . . . . . . . . 20 . . . Salvage Created 24692 | 311 758 573 230 . 833 194 129 . 392 800 1231 151 403 639 964 162 120 . 189 314 1174 189 1235 3022 7051 3628 Parts 1198 | 27 55 33 8 . 26 . 4 . 14 26 63 6 17 28 46 13 10 . 12 12 76 8 58 141 392 123 Haulers Intercepted 6 | . 2 . . . 1 . . . . 1 . . . 1 . . . . . . . . . . 1 . Recyclers Shooed 20 | . 1 . 5 . . . . . . 2 1 . . . 1 . . . . 1 . . 3 1 5 . Parts Field Recycled . | . . . . . . . . . . . . . . . . . . . . . . . . . . . Retrieved Matter . | . . . . . . . . . . . . . . . . . . . . . . . . . . . Parts Self-Destructed 53 | . . 13 . . . . 5 . 5 . . . . . . 8 11 . 11 . . . . . . . Prevented 9 | . . . . . . . 2 . 2 . . . . . . 2 3 . . . . . . . . . Parts Restored 1 | . . . . . . . . . . . . . . . . . . . . . 1 . . . . . Broken 1 | . . . . . . . . . . . . . . . . . . . . . 1 . . . . . Kills | -11 -10 -10 -9 -9 -6 -6 -6 -6 -5 -5 -5 -5 -5 -5 -4 -4 -4 -4 -3 -3 -3 -2 -2 -2 -1 -1 ------- Run | Yrd Mat Sub Rec Scr Fac Low Low Dat Pro Fac Ext Cet Arc Hub Fac Upp Upp Zhi Pro Res Qua Res Tes Sec Acc Com Combat Hostiles Destroyed 304 | . 13 11 1 . 11 . 3 . 12 9 29 2 1 5 13 6 4 . 9 . 15 . 9 37 84 30 Melee 3 | . . . . . . . . . . . 1 . . . . . . . 2 . . . . . . . Guns 121 | . 13 3 . . . . 1 . . . . . . 1 2 1 . . 2 . 6 . . 11 67 14 Cannons 83 | . . 7 1 . 2 . . . 2 4 7 . 1 3 9 1 . . . . . . 5 19 11 11 AOE 46 | . . . . . 6 . . . 7 3 15 . . . . 4 4 . 5 . . . . . 2 . Classes Destroyed 28 | 3 5 4 . . 5 1 . . . . 5 . . . 1 . . . . . . . 1 1 1 1 Worker 43 | 2 3 . . . 6 . . . . 1 3 . . 7 2 . . . . 2 2 . 1 2 10 2 Builder 22 | . 2 . 1 . 2 . . . . 1 1 . . . 2 . . . . . 1 . . 1 11 . Tunneler 17 | 9 . . . . . . . . . 1 3 . . . . . . . . 2 . 1 . . 1 . Hauler 6 | . 2 . . . 1 . . . . 1 . . . 1 . . . . . . . . . . 1 . Recycler 19 | 1 3 . 2 . 2 . . . . 2 2 . . . . . . . . 2 . 1 2 . 2 . Mechanic 3 | . . . . . 1 . . . . . . . . . . . . . . . . . . . 1 1 Operator 14 | . . . . . 1 . . . . . . . 9 1 . . . . . . . 1 . 1 . 1 Turret 2 | . . 2 . . . . . . . . . . . . . . . . . . . . . . . . Watcher 17 | . 3 . . . 1 . . . . . 1 . . 1 2 . . . . . . . 1 2 5 1 Swarmer 61 | . 9 1 . . . . 1 . 4 4 9 . . . . 4 4 . 5 . 1 . . . 15 4 Saboteur 4 | . . . . . . . . . . . 2 . . . . . . . . . . . . . 1 1 Grunt 85 | . 4 . . . . . 1 . 7 . 10 . . 1 . . . . 2 . 6 . . 17 28 9 Brawler 2 | . . . . . . . . . . . . . . . . . . . . . . . . . 1 1 Duelist 5 | . . . . . . . . . . . 1 . . . . . . . . . . . . . 2 2 Protector 3 | . . . . . . . . . . . 1 . . . . . . . . . . . . . 2 . Sentry 16 | . . 1 1 . 1 . 1 . . 2 4 . 1 1 . 1 . . . . . . . 1 1 1 Demolisher 1 | . . . . . . . . . . . 1 . . . . . . . . . . . . . . . Specialist 7 | . . . . . 5 . . . . . . . . . . . . . . . . . . 2 . . Hunter 19 | . . . . . 2 . . . . 1 . . . 1 4 . . . . . . . 3 . 6 2 Programmer 62 | . . . . . 3 . . . 1 2 . . . 2 8 1 . . 2 . . . 5 12 22 4 Heavy 3 | . . . . . . . . . . . . . . . 1 . . . . . . . . . 2 . Behemoth 4 | . . . . . . . . . . . 1 . . . . . . . . . . . . 1 1 1 Cetus Guard 2 | . . . . . . . . . . . . 2 . . . . . . . . . . . . . . Quarantine Guard 8 | . . . . . . . . . . . . . . . . . . . . . 8 . . . . . S7 Guard 3 | . . . . . . . . . . . . . . . . . . . . . . . . 2 1 . M Guard 2 | . . . . . . . . . . . . . . . . . . . . . . . . . . 2 CL-0N3 Special 1 | . . . . . . . . . . . . . . . . . . . . . . . . . 1 . Combat Programmer 3 | . . . . . . . . . . . . . . . . . . . . . . . . . 1 2 Alpha 7 2 | . . . . . . . . . . . . . . . . . . . . . . . . 2 . . Fortress 1 | . . . . . . . . . . . . . . . . . . . . . . . 1 . . . Cobbler 1 | . . 1 . . . . . . . . . . . . . . . . . . . . . . . . Subdweller 9 | . . 9 . . . . . . . . . . . . . . . . . . . . . . . . Samaritan 5 | . . . . . . 5 . . . . . . . . . . . . . . . . . . . . Assembled 2 | . . . . . . . . . . . . . . . . . . . . . . . . . . 2 Best Kill Streak 15 | 4 5 2 1 . 10 . 3 . 4 6 11 1 4 6 4 5 4 . 5 1 4 1 3 8 15 8 Combat Bots Only 14 | . 5 2 1 . 7 . 3 . 4 4 7 1 1 2 4 5 4 . 5 . 4 . 3 8 14 7 Max Kills in Single Turn 6 | 1 1 1 1 . 3 1 1 . 2 3 4 1 1 6 1 2 2 . 2 1 1 1 1 2 3 2 Gunslinging 1 | . . . . . . . . . . . . . . . . . . . . . . . . . 1 . Exploded 3 | . . . . . 3 . . . 2 3 3 . . . . 2 2 . 2 . . . . . 1 . Melee 1 | . . . . . . . . . . . 1 . . . . . . . 1 . . . . . . . Uniques/NPCs Destroyed 1 | . . . . . . . . . . . . . . . . . . . . . . . . . . 1 MAIN.C Shell (-1/Command) Combat | -11 -10 -10 -9 -9 -6 -6 -6 -6 -5 -5 -5 -5 -5 -5 -4 -4 -4 -4 -3 -3 -3 -2 -2 -2 -1 -1 -------- Run | Yrd Mat Sub Rec Scr Fac Low Low Dat Pro Fac Ext Cet Arc Hub Fac Upp Upp Zhi Pro Res Qua Res Tes Sec Acc Com Hostile Shots Fired 3123 | . 55 58 . . 111 . 13 . 40 43 105 7 2 43 129 10 6 . 274 6 75 . 102 443 1255 346 Missed 769 | . 15 17 . . 32 . 2 . 6 11 32 4 1 14 21 4 1 . 75 2 33 . 33 84 323 59 Intercepted 4 | . . . . . . . . . . . . . . . . . . . . . . . . . . 4 Hits 2354 | . 40 41 . . 79 . 11 . 34 32 73 3 1 29 108 6 5 . 199 4 42 . 69 359 932 287 Melee 17 | . . . . . 1 . . . . . 3 . . . . . . . . . . . . . 2 11 Projectile 2337 | . 40 41 . . 78 . 11 . 34 32 70 3 1 29 108 6 5 . 199 4 42 . 69 359 930 276 AOE 10 | . . . . . . . . . . . . . . . . . . . . . . . . . . 10 Critical Strikes 84 | . 1 1 . . 1 . . . 1 . 2 . . . 4 . . . 17 . 1 . 6 23 11 16 Actively Blocked 37 | . . . . . 1 . . . . . . . . . . . . . . . . . . 12 8 16 Part Disruptions 10 | . . . . . 6 . . . . . . . . . 1 . 1 . . . . . . 1 . 1 Actively Blocked 2 | . . . . . 2 . . . . . . . . . . . . . . . . . . . . . Damage Taken 31874 | . 389 1053 . . 1107 . 106 . 696 686 1414 77 55 588 2297 154 212 . 4273 91 926 . 1254 3924 5138 7434 Core 2167 | . 109 113 . . 191 . 20 . 76 23 70 . . 105 19 . 37 . 407 . 70 . 137 208 122 460 Absorbed by Shields 7802 | . . . . . . . . . . . 134 . . 46 84 . . . 206 . 181 . 284 1379 3571 1917 Reduced by Siege Mode 1511 | . . . . . . . . . . . . . . . 71 . . . 37 . . . . 239 353 811 Redirected to Shielding 254 | . . . . . 103 . . . . . . . . . . . . . . . . . 72 79 . . Ignored by Resistances 18675 | . . . . . . . . . . . . . . . 43 . . . . . . . . 2867 15219 546 Regen/Repaired (Parts) 2299 | . 83 . . . . . . . . . . . . . . . . . . . . . . . 2216 . Core Remaining (%) 68 | 100 . . . 11 . . . . 66 . . . . 80 . . . . 51 . 94 . . 78 . . Volleys Fired 1446 | 48 93 61 63 4 43 . 9 . 18 47 67 16 71 43 76 11 4 . 49 3 77 26 78 182 222 135 Largest 3 | 2 2 2 2 1 2 . 1 . 2 2 2 2 2 3 3 3 1 . 3 2 2 1 1 3 3 3 Hottest 320 | 60 100 100 110 5 80 . 98 . 80 98 98 162 162 213 187 162 48 . 139 73 113 120 200 300 210 320 Shots Fired 2266 | 96 181 100 64 4 44 . 9 . 29 59 72 32 79 67 137 20 6 . 68 6 92 26 78 241 496 260 Gun 1232 | 96 178 44 44 . 12 . 4 . 11 . . . 65 9 27 7 . . 32 6 48 . . 90 439 120 Cannon 875 | . . 52 2 . 2 . 2 . . 45 22 32 14 58 106 10 4 . 31 . 44 26 78 151 56 140 Launcher 49 | . . . . . 11 . . . 8 1 14 . . . 4 3 2 . 5 . . . . . 1 . Special 110 | . 3 4 18 4 19 . 3 . 10 13 36 . . . . . . . . . . . . . . . Kinetic 914 | 48 90 49 1 . 13 . . . 8 1 14 . . 3 57 12 2 . 63 6 48 . 3 116 281 99 Thermal 1033 | 48 91 51 63 . 12 . 6 . 11 45 22 . 65 26 36 . . . . . 13 22 56 122 190 154 Explosive 9 | . . . . . . . . . . . . . . . . 3 . . 5 . . . . . 1 . Electromagnetic 225 | . . . . . . . . . . . . 32 14 38 44 5 4 . . . 31 4 19 3 24 7 Impact 81 | . . . . . 19 . 3 . 10 13 36 . . . . . . . . . . . . . . . Robot Hit Streak 47 | 14 15 21 8 1 6 . 5 . 10 23 19 8 15 8 7 8 8 . 12 3 18 5 7 35 36 47 Robot Miss Streak 7 | 2 6 1 3 1 5 . 5 . 4 2 2 4 4 5 3 1 . . 6 2 2 2 4 3 7 3 Penetration Max 2 | . . . . . . . . . . . . . . . 1 . . . . . . . . 2 2 2 Secondary Targets 27 | . 2 . . . . . . . . . . . . . . . . . . . . . . 4 21 . Max Gunslinging Chain 1 | . 1 . . . . . . . . . . . . . . . . . . . . . . 1 1 . Capacitor 392 | . . . . . . . . . . . . . . . . . . . . . 39 26 75 112 80 60 Shots Hit Robots 1506 | 52 97 66 29 2 33 5 6 . 17 28 52 23 58 23 64 9 2 . 41 22 63 5 38 191 366 214 Core Hits 1008 | 18 41 25 8 . 38 . 2 . 25 12 69 9 23 24 25 8 4 . 24 6 29 3 13 85 371 146 Critical Kills 33 | . . 1 . . . . . . . 3 1 . . 1 . . . . . . . . 2 7 12 6 Critical Parts Destroyed 33 | . . . . . 1 1 1 . 2 2 3 . . . . . . . 4 . 1 . . 1 4 13 Critical Strikes 90 | . 1 1 1 . 1 1 1 . 2 5 5 . 1 1 . . . . 6 . 1 . 3 13 16 31 Burn 2 | . 1 . 1 . . . . . . . . . . . . . . . . . . . . . . . Meltdown 18 | . . 1 . . . . . . . 2 . . . 1 . . . . . . . . 2 7 2 3 Destroy 50 | . . . . . . . . . . . . . . . . . . . 6 . 1 . . 1 14 28 Blast 6 | . . . . . . . . . . . . . . . . . . . . . . . 1 5 . . Corrupt 1 | . . . . . . . . . . . . . 1 . . . . . . . . . . . . . Smash 13 | . . . . . 1 1 1 . 2 3 5 . . . . . . . . . . . . . . . Melee Attacks 60 | . . . . . 15 6 1 . . . . . . . . . . . . 27 11 . . . . . Impact 21 | . . . . . 15 6 . . . . . . . . . . . . . . . . . . . . Slashing 2 | . . . . . . . 1 . . . . . . . . . . . . . 1 . . . . . Piercing 37 | . . . . . . . . . . . . . . . . . . . . 27 10 . . . . . Sneak Attacks 20 | . . . . . 3 5 . . . . . . . . . . . . . 9 3 . . . . . Combat Hostiles . | . . . . . . . . . . . . . . . . . . . . . . . . . . . Follow-up Attacks . | . . . . . . . . . . . . . . . . . . . . . . . . . . . Damage Inflicted 64680 | 590 1215 1257 386 . 3350 427 250 . 1647 1557 5280 1071 1867 1788 2614 669 162 . 1941 1214 2229 223 1521 7606 15494 10322 Guns 27449 | 590 1215 261 361 . 200 . 46 . 183 . . . 1529 77 517 117 . . 662 135 957 . . 3193 13433 3973 Cannons 22104 | . . 996 25 . . . . . . 683 588 795 210 882 1989 161 . . 385 . 1014 223 1521 4413 1870 6349 Explosions 8224 | . . . . . 1737 . . . 786 139 2839 276 128 829 108 391 162 . 638 . . . . . 191 . Melee 2083 | . . . . . 319 427 . . . . . . . . . . . . . 1079 258 . . . . . Ramming 306 | . . . . . 50 . . . . . . . . . . . . . 256 . . . . . . . Kinetic 28063 | 228 545 397 . . 1737 . . . 786 139 2839 . . . 1297 162 . . 1047 135 957 . 169 4214 10143 3268 Thermal 21869 | 362 670 860 386 . 200 . 46 . 183 683 588 276 1657 148 381 . . . . . . 119 866 3218 4389 6837 Explosive 1220 | . . . . . . . . . . . . . . . . 391 . . 638 . . . . . 191 . Electromagnetic 6625 | . . . . . . . . . . . . 795 210 1640 936 116 162 . . . 1014 104 486 174 771 217 Impact 5260 | . . . . . 1363 427 204 . 678 735 1853 . . . . . . . . . . . . . . . Slashing . | . . . . . . . . . . . . . . . . . . . . . . . . . . . Piercing 1337 | . . . . . . . . . . . . . . . . . . . . 1079 258 . . . . . Highest Corruption 34 | . . . . . 6 6 6 6 7 1 3 3 11 4 7 7 8 8 28 . 34 . 4 8 . . Average Corruption 6 | . . . . . 5 6 6 6 6 1 2 3 2 1 3 7 7 8 16 . 19 . 3 7 . . Corruption Purged 26 | . . . . . . . . . . . . . 26 . . . . . . . . . . . . . Corruption Blocked . | . . . . . . . . . . . . . . . . . . . . . . . . . . . Effects 281 | . . . . . 2 11 22 3 20 1 13 9 13 6 25 21 20 4 48 . 1 . 12 50 . . Message Errors 63 | . . . . . . 1 2 2 5 . 4 2 2 1 9 4 5 3 11 . . . 2 10 . . Matter Fused 60 | . . . . . 1 5 11 1 1 . 2 1 2 1 4 3 5 . 7 . . . 1 15 . . Heat Flow Errors 40 | . . . . . . 2 4 . 4 . . 3 3 1 3 4 3 1 5 . 1 . 1 5 . . Energy Discharges 38 | . . . . . 1 . 4 . 3 1 3 . 3 1 2 2 2 . 9 . . . 3 4 . . Parts Rejected 2 | . . . . . . . . . . . . . . . . 1 . . 1 . . . . . . . Parts Fused 6 | . . . . . . . . . . . . . . . . 1 . . . . . . 1 4 . . Data Loss (minor) 37 | . . . . . . 2 1 . 2 . 1 2 2 2 4 3 1 . 8 . . . 3 6 . . Data Loss (major) 11 | . . . . . . 1 . . 1 . 2 . . . . 1 2 . 2 . . . 1 1 . . Misfires 11 | . . . . . . . . . 3 . . . 1 . 1 2 2 . . . . . . 2 . . Alerts 4 | . . . . . . . . . . . 1 1 . . . . . . 1 . . . . 1 . . Misdirections 1 | . . . . . . . . . . . . . . . . . . . 1 . . . . . . . Weapon Failures 8 | . . . . . . . . . 1 . . . . . 2 . . . 3 . . . . 2 . . Overload Shots . | . . . . . . . . . . . . . . . . . . . . . . . . . . . Overflow Damage 3167 | . . . . . 656 380 117 . 294 276 452 23 . 15 86 31 12 . 34 146 58 14 141 185 42 205 Projectiles 2168 | . . . . . 381 . 117 . 291 276 408 23 . 13 73 . . . . . . 14 141 185 41 205 Explosions 198 | . . . . . 66 . . . 3 . 44 . . 2 13 31 12 . 26 . . . . . 1 . Melee 801 | . . . . . 209 380 . . . . . . . . . . . . 8 146 58 . . . . . Knockbacks 55 | . . . . . 5 . 1 . 6 1 7 . . . 3 1 . . 3 . . . 2 26 . . Impact 19 | . . . . . 4 . 1 . 5 1 7 . . . . . . . 1 . . . . . . . Kinetic 31 | . . . . . . . . . . . . . . . 3 1 . . 2 . . . 2 23 . . Secondary 5 | . . . . . 1 . . . 1 . . . . . . . . . . . . . . 3 . . Self-Inflicted Damage 219 | . . . . . 4 . . . 47 . 11 . . 96 . 26 35 . . . . . . . . . Shots 9 | . . . . . 1 . . . 3 . 1 . . 1 . 1 2 . . . . . . . . . Rammed 65 | . . . . . . . . . . . . . . . . . . . 65 . . . . . . . Targets Rammed 69 | . . . . . 2 . . . . . . . . . . . . . 67 . . . . . . . Kicked . | . . . . . . . . . . . . . . . . . . . . . . . . . . . Crushed 4 | . . . . . 2 . . . . . . . . . . . . . 2 . . . . . . . Highest Temperature 495 | 100 210 88 160 . 96 195 223 . 268 370 192 306 303 340 302 218 495 166 300 . 340 213 350 243 . 358 Average Temperature 79 | 41 34 26 43 . 33 87 91 . 68 103 60 136 123 81 90 83 188 97 134 . 99 72 95 93 . 103 Received Heat Transfer 2777 | . 132 162 . . 36 . 21 . 159 45 145 . 9 27 . 9 . . 837 30 66 . 31 334 508 226 Effects 8 | . . . . . . . . . . 1 . . . 2 1 . 1 . 1 . 1 . 1 . . . Shutdowns 1 | . . . . . . . . . . . . . . . . . 1 . . . . . . . . . Energy Bleed 2 | . . . . . . . . . . . . . . . . . . . . . 1 . 1 . . . Interference 2 | . . . . . . . . . . . . . . 2 . . . . . . . . . . . . Short Circuit 2 | . . . . . . . . . . 1 . . . . 1 . . . . . . . . . . . Damage (minor) 1 | . . . . . . . . . . . . . . . . . . . 1 . . . . . . . Siege Activations 39 | . . . . . . . . . . . . . . . 5 1 . . 1 . . . . 9 16 7 Total Turns 665 | . . . . . . . . . . . . . . . 43 4 . . 18 . . . . 184 192 224 Longest Duration 119 | . . . . . . . . . . . . . . . 25 4 . . 18 . . . . 58 39 119 Martial Activations . | . . . . . . . . . . . . . . . . . . . . . . . . . . . Shielding Activations . | . . . . . . . . . . . . . . . . . . . . . . . . . . . Robots Disrupted . | . . . . . . . . . . . . . . . . . . . . . . . . . . . Combat Hostiles . | . . . . . . . . . . . . . . . . . . . . . . . . . . . Robots Corrupted 42 | . . . . . 4 3 2 . 3 2 6 2 . . 2 . . . . . 9 1 4 . 2 2 Combat Hostiles 35 | . . . . . 3 . 2 . 3 1 6 2 . . 2 . . . . . 9 . 3 . 2 2 Parts Fried 77 | . . . . . 9 6 . . 3 2 5 1 1 7 11 . . . . . 13 3 3 3 8 2 Impact Corruptions 71 | . . . . . 17 20 4 . 7 8 13 . . . . . . . 2 . . . . . . . Robots Melted 18 | . . 1 . . . . . . . 2 . . . 1 . . . . . . . . 2 7 2 3 Combat Hostiles 16 | . . 1 . . . . . . . 1 . . . 1 . . . . . . . . 1 7 2 3 Parts Melted 75 | 1 . 7 1 . 3 . . . . 6 1 . 6 3 . . . . . . 3 1 9 23 5 6 Heat Transferred 20487 | 825 2000 1209 1184 . 450 . 100 . 400 1000 900 150 2024 174 500 . . . . . . 111 666 2738 3828 2228 Parts Sabotaged 4 | . . . . . 4 . . . . . . . . . . . . . . . . . . . . . Parts Stolen . | . . . . . . . . . . . . . . . . . . . . . . . . . . . Parts Stripped . | . . . . . . . . . . . . . . . . . . . . . . . . . . . Power Chain Reactions 2 | . . . . . . . . . . . . 1 1 . . . . . . . . . . . . . Alert | -11 -10 -10 -9 -9 -6 -6 -6 -6 -5 -5 -5 -5 -5 -5 -4 -4 -4 -4 -3 -3 -3 -2 -2 -2 -1 -1 ------- Run | Yrd Mat Sub Rec Scr Fac Low Low Dat Pro Fac Ext Cet Arc Hub Fac Upp Upp Zhi Pro Res Qua Res Tes Sec Acc Com Maximum Alert Level 5 | . . . . . 1 . . . . 1 4 3 2 3 2 . . . . . . . . 2 5 5 Low Security (%) 62 | 100 100 . 100 . 87 . . . . 90 19 . 5 20 76 . . . . 100 100 100 100 40 . . Level 1 13 | . . . . . 12 . . . . 9 15 . 60 36 13 . . . . . . . . 52 16 . Level 2 8 | . . . . . . . . . . . 40 . 33 43 9 . . . . . . . . 7 18 . Level 3 5 | . . . . . . . . . . . 19 99 . . . . . . . . . . . . 34 . Level 4 2 | . . . . . . . . . . . 5 . . . . . . . . . . . . . 7 36 Level 5 5 | . . . . . . . . . . . . . . . . . . . . . . . . . 15 63 High Security . | . . . . . . . . . . . . . . . . . . . . . . . . . 8 . Max Security . | . . . . . . . . . . . . . . . . . . . . . . . . . . . Peak Influence 2352 | 10 113 . 81 . 243 . . . . 221 1305 844 487 993 502 . . . . 55 158 78 77 582 2352 1915 Initial 1504 | . . . 81 . . . . . . 74 95 730 321 65 486 . . . . 55 8 73 3 . 341 1504 Average 307 | 2 31 . 8 . 37 . . . . 114 512 794 347 359 153 . . . . 6 88 39 34 238 992 1643 Influence Increases 13396 | 60 490 245 207 . 504 . 75 . 295 403 1766 304 298 1480 641 140 90 . 275 127 687 114 377 1226 2677 915 Destroy 0b10 Robot/C 6620 | . 260 80 20 . 220 . 60 . 240 180 880 160 80 400 260 120 80 . 180 . 300 . 180 740 1580 600 Destroy 0b10 Robot/NC 790 | 60 65 . 15 . 70 . . . . 30 80 10 45 70 30 . . . . 30 15 15 20 30 165 40 Destroy Leader 1160 | . 60 . . . 54 . . . 40 52 92 . . 108 74 20 10 . 20 . 90 . 32 114 292 102 Allied During Kill 1057 | . . . . . . . . . . . 477 102 125 353 . . . . . . . . . . . . Successful Hack 481 | . 8 . 9 . 31 . . . . . . . . 27 114 . . . . 64 75 30 28 28 43 24 Select Force Hacks 210 | . 60 . 150 . . . . . . . . . . . . . . . . . . . . . . . Disable Machine 735 | . . . . . 75 . . . . 15 30 . 30 180 75 . . . . . 105 . 45 150 15 15 Destroy Structure 1443 | . 7 . 13 . 54 . . . . 66 192 32 18 342 88 . . . . 18 42 54 72 104 252 89 Lose Combat Pursuer 900 | . 30 165 . . . . 15 . 15 60 15 . . . . . . . 75 15 60 15 . 60 330 45 Influence Decreases 11641 | 60 479 86 377 . 290 214 47 28 176 325 658 805 915 674 1408 366 90 . 192 195 571 238 384 656 895 1512 Entered New Map 3295 | . . 6 89 . . 80 . 28 . 45 102 575 483 122 507 84 . . . 28 7 58 4 . 229 848 Time Decay 7322 | 60 479 80 288 . 270 134 47 . 156 270 386 190 422 452 581 272 90 . 158 167 564 180 360 626 626 464 Lost Part 354 | . . . . . 20 . . . 10 10 30 . 10 . 20 10 . . 34 . . . 20 30 40 120 Lost Ally 370 | . . . . . . . . . 10 . 140 40 . 100 . . . . . . . . . . . 80 Purge Threat 300 | . . . . . . . . . . . . . . . 300 . . . . . . . . . . . Squads Dispatched 69 | . 4 . . . 2 . . . . 3 6 . . 5 5 . . . . 3 . 2 3 8 19 9 Investigation 7 | . 4 . . . . . . . . . 1 . . . 1 . . . . 1 . . . . . . Extermination 27 | . . . . . 2 . . . . 1 . . . 2 4 . . . . . . 1 3 5 7 2 Reinforcement 16 | . . . . . . . . . . 2 2 . . 3 . . . . . 2 . 1 . 3 3 . Assault 19 | . . . . . . . . . . . 3 . . . . . . . . . . . . . 9 7 Garrison . | . . . . . . . . . . . . . . . . . . . . . . . . . . . Intercept . | . . . . . . . . . . . . . . . . . . . . . . . . . . . Searches Triggered . | . . . . . . . . . . . . . . . . . . . . . . . . . . . Unchained Authorized 1 | . . . . . . . . . . . . . . . . . . . . . . . . . 1 . Data Miner Redirects 7 | . . . . . . . . . . . 1 . . . . . . . . . . . . . . 6 Construction Impeded 3 | . . . . . . . . . . 1 2 . . . . . . . . . . . . . . . Haulers Reinforced 2 | . . . . . . . . . . . . . . 1 . . . . . . . . . 1 . . Active Scanning Responses . | . . . . . . . . . . . . . . . . . . . . . . . . . . . Cargo Convoy Interrupts 1 | . . . . . 1 . . . . . . . . . . . . . . . . . . . . . Stealth | -11 -10 -10 -9 -9 -6 -6 -6 -6 -5 -5 -5 -5 -5 -5 -4 -4 -4 -4 -3 -3 -3 -2 -2 -2 -1 -1 --------- Run | Yrd Mat Sub Rec Scr Fac Low Low Dat Pro Fac Ext Cet Arc Hub Fac Upp Upp Zhi Pro Res Qua Res Tes Sec Acc Com Distress Signals 24 | . 1 . . . . . . . . 2 1 2 . 2 1 . . . . 6 1 . 1 3 4 . Communications Jammed 136 | . . . . . . . . . . . . . . 7 6 . . . . . 15 . . 8 97 3 Distress Signals 126 | . . . . . . . . . . . . . . 7 1 . . . . . 15 . . 8 92 3 Times Spotted 512 | . 31 12 1 . 20 . 4 . 12 14 49 11 28 23 23 5 4 . 11 4 16 2 16 52 135 39 Peak Tracking Total 15 | . 4 2 1 . 12 . 3 . 4 6 8 5 1 6 5 2 4 . 3 1 5 2 3 7 15 5 Tactical Retreats 33 | . 2 3 . . . . 1 . 1 1 1 . . . . . . . 5 1 1 1 . 4 10 2 Traps | -11 -10 -10 -9 -9 -6 -6 -6 -6 -5 -5 -5 -5 -5 -5 -4 -4 -4 -4 -3 -3 -3 -2 -2 -2 -1 -1 ------- Run | Yrd Mat Sub Rec Scr Fac Low Low Dat Pro Fac Ext Cet Arc Hub Fac Upp Upp Zhi Pro Res Qua Res Tes Sec Acc Com Traps Triggered 19 | . 1 3 . . . . . . . 3 4 . . 1 4 . 2 . . . 1 . . . . . Indirectly 3 | . . . . . . . . . . . . . . . 3 . . . . . . . . . . . Trap Hack Attempts . | . . . . . . . . . . . . . . . . . . . . . . . . . . . Triggered . | . . . . . . . . . . . . . . . . . . . . . . . . . . . Disarmed . | . . . . . . . . . . . . . . . . . . . . . . . . . . . Reprogrammed . | . . . . . . . . . . . . . . . . . . . . . . . . . . . Reused 1 | . . . . . . . . . . . . . . . . . . . 1 . . . . . . . Traps Extracted . | . . . . . . . . . . . . . . . . . . . . . . . . . . . Installed 2 | . . . . 1 . . . . . . . . . . . . . . 1 . . . . . . . Triggered 1 | . . . . . . . . . . . . . . . . . . . 1 . . . . . . . Most Traps Carried 1 | . . 1 1 1 1 1 1 1 1 1 1 1 1 1 1 1 1 1 1 . . . . . . . Machines | -11 -10 -10 -9 -9 -6 -6 -6 -6 -5 -5 -5 -5 -5 -5 -4 -4 -4 -4 -3 -3 -3 -2 -2 -2 -1 -1 ---------- Run | Yrd Mat Sub Rec Scr Fac Low Low Dat Pro Fac Ext Cet Arc Hub Fac Upp Upp Zhi Pro Res Qua Res Tes Sec Acc Com Machines Disabled 54 | . . . . . 5 . . . . 1 6 . 2 12 5 . . . . . 7 . 3 11 1 1 Max in Single Turn 9 | . . . . . 1 . . . . 1 1 . 1 9 1 . . . . . 1 . 1 4 1 1 Garrison Access 5 | . . . . . 1 . . . . . . . . . . . . . . . 1 1 1 1 . . Network Hub 2 | . . . . . . . . . . . . . . 2 . . . . . . . . . . . . Energy Cycler 1 | . . . . . . . . . . . . . . . . . . . . . . . . . 1 . Machines Repaired . | . . . . . . . . . . . . . . . . . . . . . . . . . . . Machines Dismantled 1 | . . . . . . . . . . . . . . 1 . . . . . . . . . . . . Machines Sabotaged . | . . . . . . . . . . . . . . . . . . . . . . . . . . . Overloaded Fab Kills . | . . . . . . . . . . . . . . . . . . . . . . . . . . . Hacking | -11 -10 -10 -9 -9 -6 -6 -6 -6 -5 -5 -5 -5 -5 -5 -4 -4 -4 -4 -3 -3 -3 -2 -2 -2 -1 -1 --------- Run | Yrd Mat Sub Rec Scr Fac Low Low Dat Pro Fac Ext Cet Arc Hub Fac Upp Upp Zhi Pro Res Qua Res Tes Sec Acc Com Machines Accessed 102 | . 11 . 11 3 5 1 1 3 . 3 1 1 . 5 11 1 2 4 . 5 14 4 4 6 4 2 Terminals 56 | . 8 . 6 . 3 1 . . . . 1 1 . 5 5 . . . . 3 8 3 3 4 3 2 Fabricators . | . . . . . . . . . . . . . . . . . . . . . . . . . . . Repair Stations 4 | . 1 . . . . . . . . 1 . . . . . . . . . . 2 . . . . . Recycling Units 16 | . 2 . 5 . 1 . . . . 2 . . . . 5 . . . . 1 . . . . . . Scanalyzers 6 | . . . . . . . . . . . . . . . 1 . . . . 1 3 . . 1 . . Garrison Access 6 | . . . . . 1 . . . . . . . . . . . . . . . 1 1 1 1 1 . Total Hacks 375 | . 29 . 33 20 9 2 1 16 . 5 2 1 . 13 51 1 8 17 . 27 80 18 13 18 7 4 Successful 193 | . 14 . 19 20 4 2 1 16 . 1 . . . 4 34 1 8 17 . 5 26 3 6 7 2 3 Failed 181 | . 14 . 14 . 5 . . . . 4 2 1 . 9 17 . . . . 22 54 15 7 11 5 1 Catastrophic 36 | . 1 . . . 1 . . . . . . 1 . . 3 . . . . 7 12 4 2 3 2 . Database Lockouts 1 | . 1 . . . . . . . . . . . . . . . . . . . . . . . . . Manual 166 | . 24 . 26 . 5 . . . . . 2 1 . 8 25 . . . . 20 28 7 11 7 2 . Terminals 219 | . 22 . 22 . 6 2 . . . . 2 1 . 13 30 . . . . 20 52 16 12 11 6 4 Fabricators . | . . . . . . . . . . . . . . . . . . . . . . . . . . . Repair Stations 10 | . 3 . . . . . . . . 1 . . . . . . . . . . 6 . . . . . Recycling Units 39 | . 4 . 11 . 1 . . . . 4 . . . . 16 . . . . 3 . . . . . . Scanalyzers 31 | . . . . . . . . . . . . . . . 5 . . . . 4 17 . . 5 . . Garrison Access 13 | . . . . . 2 . . . . . . . . . . . . . . . 5 2 1 2 1 . Terminal Hacks 106 | . 2 . 4 20 . 2 1 16 . . . . . 2 13 1 8 17 . 1 10 1 1 2 2 3 Record 35 | . . . . 19 . 2 . 2 . . . . . . . . 7 5 . . . . . . . . Part Schematic 12 | . . . . . . . . 8 . . . . . . . . . 4 . . . . . . . . Robot Schematic 6 | . . . . . . . . 6 . . . . . . . . . . . . . . . . . . Robot Analysis 6 | . 1 . 1 . . . . . . . . . . . . . . 4 . . . . . . . . Prototype ID Bank 7 | . . . . . . . . . . . . . . . 1 . . 4 . . 2 . . . . . Open Door 7 | . . . . . . . 1 . . . . . . . . 1 1 . . . . . . 2 1 1 Level Access Points 3 | . . . . . . . . . . . . . . 1 1 . . . . . . 1 . . . . Branch Access Points 2 | . . . . . . . . . . . . . . . 1 . . . . . . . . . 1 . Emergency Access Points 1 | . . . . . . . . . . . . . . . . . . . . . . . . . . 1 Terminal Index 4 | . 1 . . . . . . . . . . . . . 1 . . . . 1 1 . . . . . Repair Station Index 1 | . . . . . . . . . . . . . . . 1 . . . . . . . . . . . Recycling Unit Index 2 | . . . . . . . . . . . . . . . 1 . . . . . 1 . . . . . Alert Level 3 | . . . . . . . . . . . . . . . 2 . . . . . . . . . . 1 Unreport Threat 2 | . . . . . . . . . . . . . . . 2 . . . . . . . . . . . Locate Traps 3 | . . . . . . . . . . . . . . . . . . . . . 3 . . . . . Dispatch Records 1 | . . . . . . . . . . . . . . . . . . . . . 1 . . . . . Maintenance Status 1 | . . . . . . . . . . . . . . . . . . . . . 1 . . . . . Registered Components 1 | . . . . . . . . . . . . . . . 1 . . . . . . . . . . . Zone Layout 8 | . . . 3 . . . . . . . . . . 1 2 . . . . . 1 . 1 . . . Proto ID Catalog 1 | . . . . 1 . . . . . . . . . . . . . . . . . . . . . . Fabricator Hacks . | . . . . . . . . . . . . . . . . . . . . . . . . . . . Repair Station Hacks 3 | . 2 . . . . . . . . . . . . . . . . . . . 1 . . . . . Scan Component 2 | . 1 . . . . . . . . . . . . . . . . . . . 1 . . . . . Repair 1 | . 1 . . . . . . . . . . . . . . . . . . . . . . . . . Recycling Unit Hacks 14 | . 1 . 4 . . . . . . 1 . . . . 8 . . . . . . . . . . . Report Inventory 1 | . . . . . . . . . . . . . . . 1 . . . . . . . . . . . Retrieve Matter 3 | . . . . . . . . . . . . . . . 3 . . . . . . . . . . . Retrieve Components 10 | . 1 . 4 . . . . . . 1 . . . . 4 . . . . . . . . . . . Scanalyzer 20 | . . . . . . . . . . . . . . . 4 . . . . 2 11 . . 3 . . Insert Component 8 | . . . . . . . . . . . . . . . 1 . . . . . 6 . . 1 . . Analyze 5 | . . . . . . . . . . . . . . . 2 . . . . . 3 . . . . . Retrieve Study 7 | . . . . . . . . . . . . . . . 1 . . . . 2 2 . . 2 . . Garrison Access Hacks 5 | . . . . . 1 . . . . . . . . . . . . . . . 1 1 1 1 . . Seal Access 5 | . . . . . 1 . . . . . . . . . . . . . . . 1 1 1 1 . . Unauthorized Hacks 45 | . 9 . 11 . 3 . . . . . . . . 2 9 . . . . 2 3 1 4 1 . . Terminals 35 | . 7 . 6 . 3 . . . . . . . . 2 6 . . . . 2 3 1 4 1 . . Assimilate 4 | . . . . . 1 . . . . . . . . . 1 . . . . 1 . . 1 . . . Botnet 15 | . 1 . 2 . 2 . . . . . . . . 2 2 . . . . 1 2 1 2 . . . Disrupt 1 | . . . . . . . . . . . . . . . . . . . . . . . . 1 . . Operators 4 | . 1 . . . . . . . . . . . . . 1 . . . . . 1 . 1 . . . Skim 11 | . 5 . 4 . . . . . . . . . . . 2 . . . . . . . . . . . Fabricators . | . . . . . . . . . . . . . . . . . . . . . . . . . . . Repair Stations . | . . . . . . . . . . . . . . . . . . . . . . . . . . . Recycling Units 10 | . 2 . 5 . . . . . . . . . . . 3 . . . . . . . . . . . Monitor 1 | . . . . . . . . . . . . . . . 1 . . . . . . . . . . . Reject 1 | . . . . . . . . . . . . . . . 1 . . . . . . . . . . . Recyclers 1 | . . . . . . . . . . . . . . . 1 . . . . . . . . . . . Tunnel 7 | . 2 . 5 . . . . . . . . . . . . . . . . . . . . . . . Scanalyzers . | . . . . . . . . . . . . . . . . . . . . . . . . . . . Garrison Access . | . . . . . . . . . . . . . . . . . . . . . . . . . . . Data Cores Recovered 3 | . . . . . . . . . . . . . . 1 . . . . . . . 1 . . . 1 Used 1 | . . . . . . . . . . . . . . . . . . . . . . . . . . 1 Hacking Detections 69 | . 10 . 8 . 4 1 . . . 3 1 1 . 5 7 . . . . 5 11 2 2 4 4 1 Full Trace Events 4 | . 1 . 2 . . . . . . . 1 . . . . . . . . . . . . . . . Feedback Events 1 | . . . . . . . . . . . 1 . . . . . . . . . . . . . . . Corruption 1 | . . . . . . . . . . . 1 . . . . . . . . . . . . . . . Feedback Blocked . | . . . . . . . . . . . . . . . . . . . . . . . . . . . Robot Schematics Acquired 6 | . . . . . . . . 6 . . . . . . . . . . . . . . . . . . Robots Built . | . . . . . . . . . . . . . . . . . . . . . . . . . . . Authchips . | . . . . . . . . . . . . . . . . . . . . . . . . . . . Time . | . . . . . . . . . . . . . . . . . . . . . . . . . . . Total Robot Build Rating . | . . . . . . . . . . . . . . . . . . . . . . . . . . . Part Schematics Acquired 15 | . . . . . . . . 8 . . . . . . 1 . . 4 . . 2 . . . . . Parts Built . | . . . . . . . . . . . . . . . . . . . . . . . . . . . Authchips . | . . . . . . . . . . . . . . . . . . . . . . . . . . . Time . | . . . . . . . . . . . . . . . . . . . . . . . . . . . Total Part Build Rating . | . . . . . . . . . . . . . . . . . . . . . . . . . . . Part Studies Acquired 7 | . . . . . . . . . . . . . . . 1 . . . . 2 2 . . 2 . . Parts Repaired 1 | . 1 . . . . . . . . . . . . . . . . . . . . . . . . . Time 26 | . 26 . . . . . . . . . . . . . . . . . . . . . . . . . Parts Recycled . | . . . . . . . . . . . . . . . . . . . . . . . . . . . Recycled Matter . | . . . . . . . . . . . . . . . . . . . . . . . . . . . Retrieved Matter . | . . . . . . . . . . . . . . . . . . . . . . . . . . . Retrieved Components 30 | . 9 . 10 . . . . . . 3 . . . . 8 . . . . . . . . . . . Parts Scanalyzed 3 | . . . . . . . . . . . . . . . 1 . . . . . 2 . . . . . Part Schematics Acquired 3 | . . . . . . . . . . . . . . . 1 . . . . . 2 . . . . . Parts Damaged 1 | . . . . . . . . . . . . . . . 1 . . . . . . . . . . . Bothacking | -11 -10 -10 -9 -9 -6 -6 -6 -6 -5 -5 -5 -5 -5 -5 -4 -4 -4 -4 -3 -3 -3 -2 -2 -2 -1 -1 ------------ Run | Yrd Mat Sub Rec Scr Fac Low Low Dat Pro Fac Ext Cet Arc Hub Fac Upp Upp Zhi Pro Res Qua Res Tes Sec Acc Com Used RIF Installer . | . . . . . . . . . . . . . . . . . . . . . . . . . . . Robots Hacked 2 | . . . . 2 . . . . . . . . . . . . . . . . . . . . . . Non-combat 1 | . . . . 1 . . . . . . . . . . . . . . . . . . . . . . Combat 1 | . . . . 1 . . . . . . . . . . . . . . . . . . . . . . Robot Hacks Applied 2 | . . . . 2 . . . . . . . . . . . . . . . . . . . . . . parse_system 2 | . . . . 2 . . . . . . . . . . . . . . . . . . . . . . Relay Couplers Released . | . . . . . . . . . . . . . . . . . . . . . . . . . . . Fabnet Peak Effective % . | . . . . . . . . . . . . . . . . . . . . . . . . . . . Robots Rewired 6 | . . . . . . . . . . . 6 . . . . . . . . . . . . . . . Allies Hacked . | . . . . . . . . . . . . . . . . . . . . . . . . . . . Hacks Repelled . | . . . . . . . . . . . . . . . . . . . . . . . . . . . Allies | -11 -10 -10 -9 -9 -6 -6 -6 -6 -5 -5 -5 -5 -5 -5 -4 -4 -4 -4 -3 -3 -3 -2 -2 -2 -1 -1 -------- Run | Yrd Mat Sub Rec Scr Fac Low Low Dat Pro Fac Ext Cet Arc Hub Fac Upp Upp Zhi Pro Res Qua Res Tes Sec Acc Com Total Allies 26 | . . . . . 1 . . . . . 12 5 . . 1 . . . . . . . 1 . . 6 Largest Group 10 | . . . . . 1 1 1 1 1 . 10 7 5 5 1 . . . . . . . 1 . . 6 Highest-Rated Group 613 | . . . . . 10 10 10 10 10 . 432 613 466 466 26 . . . . . . . 26 . . 84 Highest-Rated Ally 159 | . . . . . 10 10 10 10 10 . 159 144 96 96 26 . . . . . . . 26 . . 15 Total Orders 13 | . . . . . . . 2 . 2 . . . 2 2 . . . . . 5 . . . . . . STAY 5 | . . . . . . . 1 . 1 . . . 1 2 . . . . . . . . . . . . FOLLOW 3 | . . . . . . . 1 . 1 . . . 1 . . . . . . . . . . . . . EXPLORE 3 | . . . . . . . . . . . . . . . . . . . . 3 . . . . . . RETURN 2 | . . . . . . . . . . . . . . . . . . . . 2 . . . . . . Ally Attacks 340 | . . . . . . . . . . . 158 26 13 68 . . . . . . . . . . . 75 Total Damage 9241 | . . . . . . . . . . . 3390 1419 572 2360 . . . . . . . . . . . 1500 Kills 52 | . . . . . . . . . . . 22 8 3 19 . . . . . . . . . . . . Allies Corrupted 2 | . . . . . . . . . . . . . . 1 1 . . . . . . . . . . . Allies Melted . | . . . . . . . . . . . . . . . . . . . . . . . . . . . Intel | -11 -10 -10 -9 -9 -6 -6 -6 -6 -5 -5 -5 -5 -5 -5 -4 -4 -4 -4 -3 -3 -3 -2 -2 -2 -1 -1 ------- Run | Yrd Mat Sub Rec Scr Fac Low Low Dat Pro Fac Ext Cet Arc Hub Fac Upp Upp Zhi Pro Res Qua Res Tes Sec Acc Com Active Infowar (turns) 31720 | 133 2243 2856 2730 1788 1069 437 664 102 521 583 905 393 1036 1123 1933 660 619 234 1065 1195 2133 363 1056 2261 2346 1272 Optics 21006 | . . 25 1378 . . . . . 426 583 905 393 1036 1123 1933 660 619 234 1065 1195 2133 363 1056 2261 2346 1272 Sensors 9800 | . . . . . 876 360 608 . . . . . . . . 639 602 . 687 926 1594 359 544 1296 1309 . Terrain 2370 | . . . . . . . . . . . . . . . . . . . . 738 332 293 345 86 576 . Structural 1645 | . . . . . 513 . . . 1 130 . . . 294 682 . . . 4 . 21 . . . . . Seismic 13152 | 133 2243 2831 1352 1788 1066 437 660 102 363 379 200 . 76 339 1183 . . . . . . . . . . . Decoding 1271 | . . . . . . . . . . . . . . . . . . . 286 985 . . . . . . Cloaking 486 | . . . . . . . . . . . . . . . . . . . . 3 483 . . . . . Jamming 5619 | . . . . . . . . . . . . . . 141 1134 4 . 4 97 30 228 2 398 141 2292 1148 Robot Analysis Total 5 | . 1 . . . . . . . . . . . . . . . . 4 . . . . . . . . Derelict Logs Recovered 14 | . . 2 . 5 . 2 2 . 1 . . . . . . 2 . . . . . . . . . . Drone Launches 8 | . . . . . . . . . . . . . . . . . . . . 8 . . . . . . Drone Recoveries 8 | . . . . . . . . . . . . . . . . . . . . 8 . . . . . . Decoded 0b10 Intel 5 | . . . . . . . . . . . . . . . . . . . . 5 . . . . . . Patrols 4 | . . . . . . . . . . . . . . . . . . . . 4 . . . . . . Guards 1 | . . . . . . . . . . . . . . . . . . . . 1 . . . . . . Exploration | -11 -10 -10 -9 -9 -6 -6 -6 -6 -5 -5 -5 -5 -5 -5 -4 -4 -4 -4 -3 -3 -3 -2 -2 -2 -1 -1 ------------- Run | Yrd Mat Sub Rec Scr Fac Low Low Dat Pro Fac Ext Cet Arc Hub Fac Upp Upp Zhi Pro Res Qua Res Tes Sec Acc Com Turns Passed 35174 | 322 2243 3525 2832 4148 1164 438 702 102 521 583 905 393 1036 1123 1933 660 619 234 1065 1195 2133 363 1056 2261 2346 1272 Spaces Moved 18825 | 103 996 1545 1261 2315 712 385 559 91 379 350 543 184 375 598 865 362 368 137 652 1119 1592 305 695 936 955 443 Core 476 | 6 . . . 127 . . . . . . . . . . . . . . 269 74 . . . . . . Treads 4715 | 92 508 19 . 170 . . . . . . . . 102 . 286 362 368 137 221 . . . 116 936 955 443 Legs 3053 | . . . . . . . . . . . . . . . . . . . . 577 1592 305 579 . . . Wheels 10113 | 5 488 1526 1261 2018 712 385 559 91 379 350 543 184 273 598 579 . . . 162 . . . . . . . Hover . | . . . . . . . . . . . . . . . . . . . . . . . . . . . Flight 468 | . . . . . . . . . . . . . . . . . . . . 468 . . . . . . Fastest Speed 45 | 50 130 130 175 50 108 108 108 108 108 115 115 115 115 130 130 158 155 158 50 45 100 100 105 158 155 166 Average Speed 144 | 153 168 181 189 173 121 108 116 108 120 115 115 118 156 130 183 158 157 158 106 80 104 102 117 163 156 168 Slowest Speed 340 | 160 320 340 190 190 141 108 123 108 130 115 115 130 240 130 238 158 158 158 250 178 107 105 240 250 166 250 Overloaded Moves . | . . . . . . . . . . . . . . . . . . . . . . . . . . . Propulsion Burnouts . | . . . . . . . . . . . . . . . . . . . . . . . . . . . Robots Hopped . | . . . . . . . . . . . . . . . . . . . . . . . . . . . Potential Cave-ins . | . . . . . . . . . . . . . . . . . . . . . . . . . . . Cave-ins Triggered . | . . . . . . . . . . . . . . . . . . . . . . . . . . . Teleports 2 | . . . . . . . . . . . . . . . . . . . 1 . . . . . 1 . Exploration Rate (%) 57 | 5 99 84 95 89 15 70 69 68 64 12 69 60 99 62 25 55 60 61 82 26 90 10 70 61 32 18 Regions Visited 26 Branch Regions 19 Pre-discovered Areas 22 | . 3 1 5 6 . . 1 1 . . . . . . . . 2 3 . . . . . . . . Known Exits Taken 23 | . 1 . . 1 1 1 1 1 1 1 1 1 1 1 1 1 1 1 1 1 1 1 1 1 1 . Unknown Exits Taken 3 | 1 . 1 1 . . . . . . . . . . . . . . . . . . . . . . . Scrap Searched 39 | . . 18 . 7 . 2 4 . 1 . . . . . . 3 1 . 3 . . . . . . . Spaces Dug 193 | . 3 . 10 . 11 1 2 . 13 25 1 . . 12 17 1 2 . 1 9 14 14 12 11 34 . Terrain Destroyed 908 | . 3 4 17 . 64 1 3 . 60 35 116 13 12 197 47 50 3 . 66 9 28 19 24 30 84 23 Melee 28 | . . . . . 11 1 1 . . . . . . . . . . . . 9 6 . . . . . Projectile 341 | . 3 4 17 . 2 . 2 . 2 25 7 . 2 17 47 3 3 . 24 . 22 19 24 28 72 18 AOE 524 | . . . . . 51 . . . 58 10 109 13 10 180 . 47 . . 42 . . . . . 4 . Terrain Rammed . | . . . . . . . . . . . . . . . . . . . . . . . . . . . Walls Destroyed . | . . . . . . . . . . . . . . . . . . . . . . . . . . . Machines Disabled . | . . . . . . . . . . . . . . . . . . . . . . . . . . . Actions | -11 -10 -10 -9 -9 -6 -6 -6 -6 -5 -5 -5 -5 -5 -5 -4 -4 -4 -4 -3 -3 -3 -2 -2 -2 -1 -1 --------- Run | Yrd Mat Sub Rec Scr Fac Low Low Dat Pro Fac Ext Cet Arc Hub Fac Upp Upp Zhi Pro Res Qua Res Tes Sec Acc Com Total 24684 | 177 1373 2144 1595 2463 941 397 602 94 412 469 746 337 749 859 1080 426 399 154 897 1360 1978 352 918 1506 1457 799 Wait 2676 | 11 262 445 237 13 88 . 12 . 10 27 35 85 261 161 72 34 17 2 77 130 184 8 25 196 151 133 Move 18799 | 102 995 1544 1260 2314 711 384 558 90 378 349 542 183 374 597 864 361 367 136 651 1118 1591 304 694 935 954 443 Hop . | . . . . . . . . . . . . . . . . . . . . . . . . . . . Pick Up 328 | 8 13 27 6 65 17 2 5 . 1 8 7 19 6 7 12 4 . 2 9 24 23 1 13 17 12 20 Fast Attach 185 | 7 . 1 1 3 6 1 4 2 . 1 1 . 9 . 5 1 3 5 7 17 8 3 29 49 12 10 Attach 140 | . . 7 . 6 18 1 2 . 1 3 2 8 10 . 6 1 . 1 15 6 3 1 5 14 12 18 Detach 38 | . . 1 . . 5 2 . . . 1 1 5 5 . . . . . 4 . 1 . 2 4 4 3 Swap 470 | 1 7 41 21 8 15 . 4 . 4 12 14 4 2 41 32 13 5 2 5 14 52 5 27 60 71 10 Drop 381 | . 3 17 6 49 21 1 7 2 . 5 7 17 11 7 13 1 3 6 12 21 28 4 45 49 19 27 Fire 1446 | 48 93 61 63 4 43 . 9 . 18 47 67 16 71 43 76 11 4 . 49 3 77 26 78 182 222 135 Melee 60 | . . . . . 15 6 1 . . . . . . . . . . . . 27 11 . . . . . Ram . | . . . . . . . . . . . . . . . . . . . . . . . . . . . Kick . | . . . . . . . . . . . . . . . . . . . . . . . . . . . Crush 69 | . . . . . 2 . . . . . . . . . . . . . 67 . . . . . . . Escape Stasis 32 | . . . . . . . . . . 16 16 . . . . . . . . . . . . . . . Rewire 54 | . . . . . . . . . . . 54 . . . . . . . . . . . . . . . Trap 2 | . . . . 1 . . . . . . . . . . . . . . 1 . . . . . . . Miscellaneous 4 | . . . 1 . . . . . . . . . . 3 . . . . . . . . . . . . Route ------- -11/Scrapyard -10/Materials (discovered 6 exits: *Mat x3 / *Min x2 / *Sub) -10/Subcaves (discovered 3 exits: *Mat x2 / *Rec) -9/Recycling (discovered 2 exits: [*Fac] / *Scr) -9/Scraptown (discovered 2 exits: *Fac x2) -6/Factory (discovered 4 exits: Fac x2 / *Low x2) -6/Lower Caves -6/Lower Caves -6/Data Miner -5/Proximity Caves -5/Factory (discovered 4 exits: Fac x2 / Upp / *Ext) -5/Extension (discovered 2 exits: *Fac / *Cet) -5/Cetus (discovered 2 exits: *Fac / *Arc) -5/Archives (discovered 3 exits: *Fac / *Hub x2) -5/Hub_04(d) (discovered 4 exits: *Fac x4) -4/Factory (discovered 6 exits: *Res x4 / *Upp x2) -4/Upper Caves -4/Upper Caves (discovered 2 exits: *Res / *Zhi) -4/Zhirov -3/Proximity Caves -3/Research (discovered 5 exits: *Res x3 / Arm / *Qua) -3/Quarantine -2/Research (discovered 4 exits: Acc x3 / *Tes) -2/Testing (discovered 2 exits: *Sec / *Frg) -2/Section 7 -1/Access -1/Command History --------- Turn | Location | Event 25 | -11/Scrapyard | Discovered new exit (range 15) 323 | -11/Scrapyard | Entered Materials 324 | -10/Materials | Build established: Mutant 382 | -10/Materials | Discovered new exit (range 10) 441 | -10/Materials | Discovered new exit (range 4) 1160 | -10/Materials | Central database locked down 1749 | -10/Materials | Discovered new exit (range 13) 1767 | -10/Materials | Learned location of Subcaves (-10) 1815 | -10/Materials | Identified exit to Subcaves 1853 | -10/Materials | Identified exit to Mines 1853 | -10/Materials | Identified exit to Materials 1881 | -10/Materials | Loaded intel: 1 repair station location 1897 | -10/Materials | Learned Storage stockpile data 1904 | -10/Materials | Learned location of 2 exits from Materials 1909 | -10/Materials | Learned Storage trap positions 1922 | -10/Materials | Learned location of 2 exits from Subcaves 1923 | -10/Materials | Repaired Lgt. Treads 1943 | -10/Materials | Learned 4 Recycling zone layouts 2566 | -10/Materials | Entered Subcaves 2566 | -10/Subcaves | Learned location of Zion (-7) 2567 | -10/Subcaves | Identified exit to Materials 2882 | -10/Subcaves | Core integrity fell below 50% 3270 | -10/Subcaves | Lost 5 parts (2p2n1w) 3600 | -10/Subcaves | Learned Materials interactive machine intel 3985 | -10/Subcaves | Disturbed a concealed Subdweller 4133 | -10/Subcaves | Disturbed a concealed Subdweller 4368 | -10/Subcaves | Build established: Scavenger-Mutant 4927 | -10/Subcaves | Build established: Mutant 5332 | -10/Subcaves | Core integrity fell below 20% 6038 | -10/Subcaves | Discovered new exit (range 16) 6091 | -10/Subcaves | Entered Recycling 6645 | -9/Recycling | Build established: Scavenger-Mutant 6799 | -9/Recycling | Discovered new exit (range 21) 8154 | -9/Recycling | Scanned before Scraplab entrance 8587 | -9/Recycling | Build established: Mutant 8905 | -9/Recycling | Entered Scraplab 8919 | -9/Recycling | Discovered new exit (range 3) 8923 | -9/Recycling | Entered Scraptown 9186 | -9/Scraptown | Visited Assassins FH 9235 | -9/Scraptown | Visited UFD Registry 9235 | -9/Scraptown | Registered with UFD as "Pulsecoil" 9257 | -9/Scraptown | Visited Scrapoid Research Area 9294 | -9/Scraptown | Visited TADAMA 9326 | -9/Scraptown | Visited Cyclists 9340 | -9/Scraptown | Entered Cyclist Reading Room 9371 | -9/Scraptown | Visited Bundlers 9455 | -9/Scraptown | Visited Red Mages 9483 | -9/Scraptown | Visited Spacefarers 9755 | -9/Scraptown | Heard Great Nut preacher, LISTEN AND RECITE! 9760 | -9/Scraptown | Discovered new exit (range 11) 9840 | -9/Scraptown | Scanned Subdweller tech in exchange for log data 9844 | -9/Scraptown | Learned Factory security intel 9846 | -9/Scraptown | Learned location of Testing (-2) 9847 | -9/Scraptown | Learned Factory trap positions 9849 | -9/Scraptown | Learned Factory stockpile data 9851 | -9/Scraptown | Learned Research emergency access door positions 9998 | -9/Scraptown | Visited Science Guys 10056 | -9/Scraptown | Visited Abandonware Association 10078 | -9/Scraptown | Learned abandonware demo "MELTYB.EXE" 10078 | -9/Scraptown | Learned abandonware demo "KABOOM.EXE" 10117 | -9/Scraptown | Visited A0-MCA Data Center 10175 | -9/Scraptown | Delivered Scrap Shield to a Scientist 10257 | -9/Scraptown | Visited Observation Area 10283 | -9/Scraptown | Visited Scrapoid Pod Storage 10306 | -9/Scraptown | Visited Scrap Suit Storage 10322 | -9/Scraptown | Visited Curators Association 10411 | -9/Scraptown | Visited Junk Cannon Lab 10443 | -9/Scraptown | Visited Cartography Club 10508 | -9/Scraptown | Found Surveybot 17 Chip 10532 | -9/Scraptown | Learned location of Storage (-9) 10532 | -9/Scraptown | Learned location of Recycling (-9) 10532 | -9/Scraptown | Learned location of Warlord (-5) 10532 | -9/Scraptown | Learned 16 Materials zone layouts 10532 | -9/Scraptown | Learned 8 Lower Caves zone layouts 10532 | -9/Scraptown | Learned 24 Upper Caves zone layouts 10532 | -9/Scraptown | Learned 8 Proximity Caves zone layouts 10532 | -9/Scraptown | Learned 20 Proximity Caves zone layouts 10532 | -9/Scraptown | Learned location of 2 exits from Factory 10532 | -9/Scraptown | Learned location of 2 exits from Research 10532 | -9/Scraptown | Identified exit to Factory 10544 | -9/Scraptown | Found Deep Structural Scanner 10802 | -9/Scraptown | Given an A rating by A0-MCA 10804 | -9/Scraptown | Found A0-MCA's Component Scanner 10899 | -9/Scraptown | Found Scrapoid Pod 11374 | -9/Scraptown | Found Prototype Special Weapon 11477 | -9/Scraptown | Warned about trapping Scraptown 12049 | -9/Scraptown | Identified Junk Cannon 13071 | -9/Scraptown | Entered Factory 13071 | -6/Factory | Evolved 8 slots: Propulsion x3, Utility x4, Weapon x1 13072 | -6/Factory | Identified exit to Lower Caves 13073 | -6/Factory | Identified exit to Factory 13074 | -6/Factory | Loaded intel: 115 trap records 13548 | -6/Factory | Build established: Assassin 14065 | -6/Factory | Cargo convoy interrupted 14110 | -6/Factory | Destroyed 7 combat bots 14125 | -6/Factory | Build established: Mutant 14235 | -6/Factory | Entered Lower Caves 14235 | -6/Lower Caves | Accompanied by 1 ally 14236 | -6/Lower Caves | Identified exit to Lower Caves 14237 | -6/Lower Caves | UFD Scientist delivered a prototype 14238 | -6/Lower Caves | Found Prototype Protection 14341 | -6/Lower Caves | Learned location of 1 exit from Factory 14509 | -6/Lower Caves | Encountered a Warlord checkpoint 14673 | -6/Lower Caves | Entered another Lower Caves area 14673 | -6/Lower Caves | Accompanied by 1 ally 14934 | -6/Lower Caves | Learned location of 2 exits from Factory 15049 | -6/Lower Caves | Encountered a Warlord checkpoint 15223 | -6/Lower Caves | Build established: Skirmisher 15299 | -6/Lower Caves | Discovered new exit (range 5) 15300 | -6/Lower Caves | Attracted the attention of an 0b10 checkpoint 15331 | -6/Lower Caves | Identified exit to Data Miner 15375 | -6/Lower Caves | Entered Data Miner 15375 | -6/Data Miner | Accompanied by 1 ally 15377 | -6/Data Miner | Discovered new exit (range 6) 15397 | -6/Data Miner | Met Data Miner 15416 | -6/Data Miner | Learned location of Section 7 (-2) 15416 | -6/Data Miner | Acquired the access code to Warlord's prototype stash 15435 | -6/Data Miner | Received God Mode back door access code from Data Miner 15476 | -6/Data Miner | Identified exit to Proximity Caves 15477 | -6/Data Miner | Entered Proximity Caves 15477 | -5/Proximity Caves | Accompanied by 1 ally 15601 | -5/Proximity Caves | Learned location of 1 exit from Factory 15624 | -5/Proximity Caves | Received a Behemoth hack from an annoying Tinkerer 15631 | -5/Proximity Caves | Spotted B-75 Beast 15764 | -5/Proximity Caves | Build established: Tank 15998 | -5/Proximity Caves | Entered Factory 15998 | -5/Factory | Evolved 2 slots: Power x1, Propulsion x1 15999 | -5/Factory | Identified exit to Upper Caves 15999 | -5/Factory | Identified exit to Factory 15999 | -5/Factory | Identified exit to Extension 16519 | -5/Factory | Identified Enh. Scrap Shield 16581 | -5/Factory | Entered Extension 16635 | -5/Extension | Rescued a captive Derelict 16636 | -5/Extension | Rescued a captive Derelict 16669 | -5/Extension | Incoming investigation squad redirected 16763 | -5/Extension | Rescued a captive Derelict 16764 | -5/Extension | Rescued a captive Derelict 16792 | -5/Extension | Rescued A7 16829 | -5/Extension | Destroyed 7 combat bots 16839 | -5/Extension | Build established: Skirmisher 16881 | -5/Extension | First assault squad dispatched 16930 | -5/Extension | Rescued a captive Derelict 17232 | -5/Extension | Spotted B-75 Beast 17240 | -5/Extension | Spotted B-75 Beast 17253 | -5/Extension | Allies destroyed B-75 Beast 17262 | -5/Extension | Destroyed B-75 Beast 17315 | -5/Extension | Lost 5 allies 17381 | -5/Extension | Disrupted transfer network 17407 | -5/Extension | Discovered new exit (range 22) 17409 | -5/Extension | Discovered exit to Factory (range 20) 17485 | -5/Extension | Identified exit to Cetus 17486 | -5/Extension | Entered Cetus 17486 | -5/Cetus | Accompanied by 2 allies (A7) 17491 | -5/Cetus | Acquired a Cetus Manufacturing Module code from A7 17502 | -5/Cetus | Destroyed 7 combat bots 17507 | -5/Cetus | Spotted Cetus Guard 17507 | -5/Cetus | Spotted Cetus Guard 17512 | -5/Cetus | Spotted Cetus Guard 17512 | -5/Cetus | Spotted Cetus Guard 17514 | -5/Cetus | Allies destroyed Cetus Guard 17516 | -5/Cetus | Allies destroyed Cetus Guard 17526 | -5/Cetus | Destroyed Cetus Guard 17529 | -5/Cetus | Allies destroyed Cetus Guard 17616 | -5/Cetus | Started Cetus Manufacturing Module 17627 | -5/Cetus | Discovered new exit (range 21) 17641 | -5/Cetus | Manufactured an Enhanced Grunt 17666 | -5/Cetus | Manufactured an Enhanced Grunt 17691 | -5/Cetus | Manufactured an Enhanced Grunt 17716 | -5/Cetus | Manufactured an Enhanced Grunt 17741 | -5/Cetus | Manufactured an Enhanced Grunt 17747 | -5/Cetus | Spotted Cetus Guard 17747 | -5/Cetus | Spotted Cetus Guard 17750 | -5/Cetus | Spotted Cetus Guard 17751 | -5/Cetus | Spotted Cetus Guard 17758 | -5/Cetus | Destroyed Cetus Guard 17760 | -5/Cetus | Allies destroyed Cetus Guard 17765 | -5/Cetus | Allies destroyed Cetus Guard 17776 | -5/Cetus | Allies destroyed Cetus Guard 17778 | -5/Cetus | Extracted ID and sensor layout for unrecognized location from A7's data core 17782 | -5/Cetus | Discovered exit to Factory (range 21) 17801 | -5/Cetus | Met Revision 17 17861 | -5/Cetus | Identified exit to Archives 17879 | -5/Cetus | Entered Archives 17879 | -5/Archives | Accompanied by 5 allies 17961 | -5/Archives | Discovered new exit (range 22) 17980 | -5/Archives | Discovered new exit (range 22) 18046 | -5/Archives | Discovered exit to Factory (range 22) 18176 | -5/Archives | System corruption reached 10% 18376 | -5/Archives | Build established: Commander-Mutant 18825 | -5/Archives | Identified exit to Hub_04(d) 18915 | -5/Archives | Entered Hub_04(d) 18915 | -5/Hub_04(d) | Accompanied by 5 allies 19099 | -5/Hub_04(d) | Spotted B-75 Beast 19663 | -5/Hub_04(d) | Build established: Scavenger-Tank 19810 | -5/Hub_04(d) | Found Prototype Launcher 19917 | -5/Hub_04(d) | Network Hub disabled 20036 | -5/Hub_04(d) | Network Hub disabled 20038 | -5/Hub_04(d) | Entered Factory 20038 | -4/Factory | Evolved 2 slots: Utility x2 20075 | -4/Factory | Identified Mni. Smartbomb Launcher 20225 | -4/Factory | Identified exit to Upper Caves 20225 | -4/Factory | Identified exit to Research 20230 | -4/Factory | Found Quantum Capacitor 21526 | -4/Factory | Build established: Scavenger-Mutant 21933 | -4/Factory | Build established: Scavenger-Tank 21971 | -4/Factory | Entered Upper Caves 21972 | -4/Upper Caves | Identified exit to Upper Caves 22260 | -4/Upper Caves | Build established: Scavenger-Skirmisher 22328 | -4/Upper Caves | Learned 4 Research zone layouts 22441 | -4/Upper Caves | Attracted the attention of an 0b10 checkpoint 22631 | -4/Upper Caves | Entered another Upper Caves area 22689 | -4/Upper Caves | Entered an active Warlord outpost 22724 | -4/Upper Caves | Learned Extension trap positions 22724 | -4/Upper Caves | Learned Armory security intel 22724 | -4/Upper Caves | Learned Extension garrison access intel 23202 | -4/Upper Caves | Discovered new exit (range 12) 23223 | -4/Upper Caves | Identified exit to Zhirov 23250 | -4/Upper Caves | Entered Zhirov 23250 | -4/Zhirov | Discovered new exit (range 3) 23252 | -4/Zhirov | Identified exit to Proximity Caves 23282 | -4/Zhirov | Met Zhirov 23313 | -4/Zhirov | Learned location of Quarantine (-3) 23327 | -4/Zhirov | Zhirov requested help retrieving the SGEMP Prototype 23352 | -4/Zhirov | Found Alien Artifact 23352 | -4/Zhirov | Identified Integrated Dissipator 23352 | -4/Zhirov | Installed Integrated Dissipator, increased core heat dissipation (+20) 23413 | -4/Zhirov | Found Alien Artifact 23484 | -4/Zhirov | Entered Proximity Caves 23516 | -3/Proximity Caves | Spotted B-86 Titan 23624 | -3/Proximity Caves | Identified Transdimensional Reconstructor 23624 | -3/Proximity Caves | Warped through subspace 23669 | -3/Proximity Caves | System corruption reached 10% 24105 | -3/Proximity Caves | Lost 8 parts (2n3u3w) 24507 | -3/Proximity Caves | Discovered exit to Research (range 5) 24549 | -3/Proximity Caves | Entered Research 24549 | -3/Research | Evolved 2 slots: Utility x2 24550 | -3/Research | Identified exit to Armory 24551 | -3/Research | Identified exit to Research 24749 | -3/Research | Revision forces began assault on 0b10 24760 | -3/Research | Met up with Revision 17++ 24778 | -3/Research | Build established: Derelict-Scout 24862 | -3/Research | Discovered new exit (range 29) 25173 | -3/Research | Identified exit to Quarantine 25192 | -3/Research | Found Unknown Launcher 25192 | -3/Research | Identified Fusion Bomb Launcher 25249 | -3/Research | Research terminal network offline 25318 | -3/Research | Build established: Scavenger-Assassin 25329 | -3/Research | Found Quantum Capacitor 25361 | -3/Research | Discovered exit to Research (range 11) 25628 | -3/Research | Spotted Striker 25667 | -3/Research | Lost 3 allies 25744 | -3/Research | Entered Quarantine 26013 | -3/Quarantine | Cryocooling Duct disabled 26028 | -3/Quarantine | Ambient heat levels rising (+20) 26028 | -3/Quarantine | Non-combat units ordered to evacuate 26089 | -3/Quarantine | Cryocooling Duct disabled 26104 | -3/Quarantine | Ambient heat levels rising (+20) 26104 | -3/Quarantine | Combat units ordered to evacuate 26204 | -3/Quarantine | Quarantine Guard activated 26269 | -3/Quarantine | Spotted Quarantine Guard 26275 | -3/Quarantine | Spotted Quarantine Guard 26293 | -3/Quarantine | Spotted Quarantine Guard 26297 | -3/Quarantine | Destroyed Quarantine Guard 26336 | -3/Quarantine | Destroyed Quarantine Guard 26491 | -3/Quarantine | Destroyed Quarantine Guard 26530 | -3/Quarantine | Spotted Quarantine Guard 26696 | -3/Quarantine | Discovered exit to Research (range 22) 26726 | -3/Quarantine | Spotted Quarantine Guard 26732 | -3/Quarantine | Destroyed Quarantine Guard 26779 | -3/Quarantine | Build established: Skirmisher 26784 | -3/Quarantine | Spotted Quarantine Guard 26794 | -3/Quarantine | Destroyed Quarantine Guard 26861 | -3/Quarantine | Spotted Quarantine Guard 26915 | -3/Quarantine | Spotted Quarantine Guard 26920 | -3/Quarantine | Destroyed Quarantine Guard 26935 | -3/Quarantine | Spotted Quarantine Guard 26969 | -3/Quarantine | Destroyed Quarantine Guard 26999 | -3/Quarantine | Found Alien Artifact 27318 | -3/Quarantine | Spotted Quarantine Guard 27326 | -3/Quarantine | Destroyed Quarantine Guard 27525 | -3/Quarantine | Found Alien Energy Cannon 27545 | -3/Quarantine | Build established: Scientist-Skirmisher 27608 | -3/Quarantine | Found Alien Artifact 27744 | -3/Quarantine | Spotted Quarantine Guard 27851 | -3/Quarantine | System corruption reached 10% 27867 | -3/Quarantine | System corruption reached 30% 27877 | -3/Quarantine | Entered Research 27877 | -2/Research | Evolved 2 slots: Power x1, Utility x1 28005 | -2/Research | Discovered new exit (range 17) 28122 | -2/Research | Identified exit to Testing 28158 | -2/Research | Identified exit to Access 28240 | -2/Research | Entered Testing 28356 | -2/Testing | Found Prototype Energy Cannon 28356 | -2/Testing | Identified Hpw. Disruptor Cannon 28621 | -2/Testing | Discovered exit to Access (range 22) 28731 | -2/Testing | Found Prototype Energy Cannon 28731 | -2/Testing | Identified Disintegrator 28988 | -2/Testing | Spotted Fortress 29029 | -2/Testing | Destroyed Fortress 29033 | -2/Testing | Found Prototype Reactor 29037 | -2/Testing | Found Prototype Reactor 29037 | -2/Testing | Identified Vortex Chain Reactor (x2) 29040 | -2/Testing | Found Prototype Device 29040 | -2/Testing | Identified Exp. EM Shield 29048 | -2/Testing | Found Prototype Protection 29048 | -2/Testing | Identified Centrium Heavy Armor Plating 29113 | -2/Testing | Identified Core Reset Matrix 29113 | -2/Testing | Identified Core Cannon 29113 | -2/Testing | Identified Subatomic Replicator 29113 | -2/Testing | Used Core Reset Matrix 29281 | -2/Testing | Discovered new exit (range 6) 29281 | -2/Testing | Discovered new exit (range 7) 29288 | -2/Testing | Identified exit to Protoforge 29292 | -2/Testing | Identified exit to Section 7 29296 | -2/Testing | Entered Section 7 29297 | -2/Section 7 | Detected hypermatrix surge 29297 | -2/Section 7 | Sensed 22 artifacts in vicinity 29323 | -2/Section 7 | Found Integrated Mediator 29323 | -2/Section 7 | Installed Integrated Mediator, increased core attachment efficiency 29419 | -2/Section 7 | Build established: Scavenger-Tank 29683 | -2/Section 7 | Spotted S7 Guard 29689 | -2/Section 7 | Destroyed S7 Guard 29964 | -2/Section 7 | Found Integrity Redistributor 29981 | -2/Section 7 | Spotted Alpha 7 29981 | -2/Section 7 | Spotted Alpha 7 29981 | -2/Section 7 | Spotted S7 Guard 29984 | -2/Section 7 | Destroyed S7 Guard 30017 | -2/Section 7 | Destroyed Alpha 7 30051 | -2/Section 7 | Destroyed Alpha 7 30080 | -2/Section 7 | Found Core Membrane 30085 | -2/Section 7 | Installed Core Membrane, gained immunity to corruption 30309 | -2/Section 7 | Found Prototype Processor 30310 | -2/Section 7 | Identified Exp. Targeting Computer 30336 | -2/Section 7 | Found Prototype Processor 30336 | -2/Section 7 | Identified Exp. Target Analyzer 30375 | -2/Section 7 | Spotted B-99 Colossus 30406 | -2/Section 7 | Destroyed B-99 Colossus 30430 | -2/Section 7 | Found Unknown Protection 30430 | -2/Section 7 | Identified Hvy. Reflective Plating 30440 | -2/Section 7 | Found Prototype Ballistic Gun 30441 | -2/Section 7 | Identified Multirail 30457 | -2/Section 7 | Found Multirail 30550 | -2/Section 7 | Found Integrated Reactor 30550 | -2/Section 7 | Installed Integrated Reactor, increased core energy generation (+10) 30553 | -2/Section 7 | Found Integrated Reactor 30553 | -2/Section 7 | Installed Integrated Reactor, increased core energy generation (+10) 30557 | -2/Section 7 | Found Integrated Reactor 30557 | -2/Section 7 | Installed Integrated Reactor, increased core energy generation (+10) 30615 | -2/Section 7 | Found LRC Insulator 30615 | -2/Section 7 | Installed LRC Insulator, 1 resistance modified: EM +25% 30625 | -2/Section 7 | Found LRC Energy Well 30625 | -2/Section 7 | Installed LRC Energy Well, increased energy storage capacity (+250) 30647 | -2/Section 7 | Found LRC Armor 30647 | -2/Section 7 | Installed LRC Armor, increased core integrity (+250) 30742 | -2/Section 7 | Found Integrated Dissipator 30742 | -2/Section 7 | Installed Integrated Dissipator, increased core heat dissipation (+20) 30797 | -2/Section 7 | Found Unknown Protection 30797 | -2/Section 7 | Identified Hvy. Insulated Plating 30938 | -2/Section 7 | Found Transdimensional Reconstructor 31212 | -2/Section 7 | Found Integrated Dissipator 31212 | -2/Section 7 | Installed Integrated Dissipator, increased core heat dissipation (+20) 31429 | -2/Section 7 | Discovered exit to Access (range 15) 31473 | -2/Section 7 | Destroyed 8 combat bots 31557 | -2/Section 7 | Entered Access 31557 | -1/Access | Evolved 2 slots: Utility x2 31806 | -1/Access | Build established: Alien-Tank 31849 | -1/Access | Unchained authorized (CL-0N3) 32057 | -1/Access | First assault squad dispatched 32286 | -1/Access | O-24 Administrator reconstituted as S7 Guard 32287 | -1/Access | Spotted S7 Guard 32311 | -1/Access | Destroyed S7 Guard 32311 | -1/Access | S7 Guard reconstituted as CL-0N3 32403 | -1/Access | Identified exit to Command 32715 | -1/Access | Spotted B-99 Colossus 32797 | -1/Access | T-07 Excavator reconstituted as Combat Programmer 32799 | -1/Access | Spotted Combat Programmer 32825 | -1/Access | Destroyed Combat Programmer 32825 | -1/Access | Combat Programmer reconstituted as CL-0N3 32897 | -1/Access | Destroyed 7 combat bots 33047 | -1/Access | Energy Cycler disabled 33183 | -1/Access | Used Integrity Redistributor, redistributed integrity from core (-377) 33264 | -1/Access | Destroyed 14 combat bots 33595 | -1/Access | K-01 Serf reconstituted as Access Guard 33595 | -1/Access | Spotted Access Guard 33613 | -1/Access | Warped through subspace 33631 | -1/Access | Spotted B-99 Colossus 33634 | -1/Access | Destroyed B-99 Colossus 33653 | -1/Access | Found Hvy. Insulated Plating 33700 | -1/Access | Destroyed Access Guard 33700 | -1/Access | Access Guard reconstituted as CL-0N3 33706 | -1/Access | High security lockdown imminent 33732 | -1/Access | Found Hvy. Reflective Plating 33786 | -1/Access | High security lockdown engaged 33809 | -1/Access | Destroyed 8 combat bots 33903 | -1/Access | Entered Command 34153 | -1/Command | First assault squad dispatched 34336 | -1/Command | Destroyed 7 combat bots 34424 | -1/Command | Incoming assault squad redirected 34425 | -1/Command | Incoming assault squad redirected 34441 | -1/Command | Spotted B-99 Colossus 34483 | -1/Command | Destroyed B-99 Colossus 34529 | -1/Command | Found Hvy. Insulated Plating 34583 | -1/Command | Spotted M Guard 34583 | -1/Command | Spotted M Guard 34619 | -1/Command | Spotted Combat Programmer 34620 | -1/Command | Spotted Combat Programmer 34637 | -1/Command | Destroyed Combat Programmer 34650 | -1/Command | Destroyed Combat Programmer 34664 | -1/Command | Destroyed M Guard 34677 | -1/Command | Incoming assault squad redirected 34678 | -1/Command | Incoming assault squad redirected 34684 | -1/Command | Destroyed M Guard 34684 | -1/Command | All MAIN.C guards destroyed 34918 | -1/Command | Incoming assault squad redirected 34955 | -1/Command | Incoming assault squad redirected 35032 | -1/Command | Used Subatomic Replicator to replicate Core Cannon 35045 | -1/Command | Met MAIN.C 35050 | -1/Command | 0b10 Conduit disabled 35073 | -1/Command | Destroyed MAIN.C Shell 35074 | -1/Command | Core integrity fell below 50% 35074 | -1/Command | MAIN.C activated Command garrisons 35119 | -1/Command | Emitted hypermatrix ping 35124 | -1/Command | Assembled emerged from beneath the floor 35137 | -1/Command | Core integrity fell below 20% 35170 | -1/Command | Lost 9 parts (1p3n4u1w) 35175 | -1/Command | Destroyed by P-80 Master with Gamma Rifle Last Messages --------------- 35155_ MAIN.C suffers critical hit (Destroy). 35155_ Beam penetrates 0b10 Conduit. 35158_ Beam penetrates MAIN.C. 35158_ MAIN.C suffers critical hit (Destroy). 35158_ as-66376 suffers critical hit (Destroy). 35158_ as-66376 destroyed. 35161_ Beam penetrates 0b10 Conduit. 35161_ Beam penetrates MAIN.C. 35161_ MAIN.C suffers critical hit (Destroy). 35161_ Destroyed Prototype Reactor. 35161_ Beam penetrates 0b10 Conduit. 35164_ Beam penetrates MAIN.C. 35164_ MAIN.C suffers critical hit (Destroy). 35164_ Destroyed Prototype Ballistic Gun. 35164_ as-38362 destroyed. 35165_ as-26101 destroyed. 35167_ Beam penetrates as-59608. 35167_ as-59608 suffers critical hit (Destroy). 35167_ as-59608 destroyed. 35167_ Beam penetrates MAIN.C. Map ----- +----------------------------------------------------+ | ?????????????????????????????????????????????????? | | ?????????????????????????????????????????????????? | | ?????????????????????????????????????????????????? | | ?????????????????????????????????????????????????? | | ?????????????????????????????????????????????????? | | ?????????????????????????????????????????????????? | | ?????????????????????????????????????????????????? | | ?????????????????????????????????????????????????? | | ?????????????????????????????????????????????????? | | ?????????????????????????????????????????????????? | | ?????????????????????????????????????????????????? | | ?????????????????????????????????????????????????? | | ?????????????????????????????????????????????????? | | ?????????????????????????????????????????????????? | | ?????????????????????????????????????????????????? | | ?????????????????????????????????????????????????? | | ?????????????????????????????????????????????????? | | ?????????????????????????????????????????????????? | | ???????????################??????????????????????? | | ???????????" """" #??????????????????????? | | ?????????? "" #??????????????????????? | | ?????????? "" #######################? | | ???????????""""" / #? | | ?????????" """ %%/ [ #? | | ???????????"""" %%%p% ! #? | | ???????????"""" % @################### #? | | ???????????"""" #?????????????????# #? | | ????????? "" M% #?????????????????# %## | | ????????? " % % ""#?????????????????# =/T# | | ?????????""" """""#?????????????????#+++## | | ???????? % """"""#?????????????????#=!%!% | | ?????? """""""#?????????????????# * / | | ?????? " " " #?????????????????# | | ??????? " " " #?????????????????# | | ??????? "?" """" " #?????????????????#% | | ???????? " ??? """" #?????????????????# # | | ???????? ?????????? #?????????????????###### | | ???????? ????????????? ???????????????????????? | | ????????? ??????????????""???????????????????????? | | ?????????????????????????????????????????????????? | | ?????????????????????????????????????????????????? | | ?????????????????????????????????????????????????? | | ?????????????????????????????????????????????????? | | ?????????????????????????????????????????????????? | | ?????????????????????????????????????????????????? | | ?????????????????????????????????????????????????? | | ?????????????????????????????????????????????????? | | ?????????????????????????????????????????????????? | | ?????????????????????????????????????????????????? | | ?????????????????????????????????????????????????? | +----------------------------------------------------+ Best States ------------- Heat Dissipation 174 Coolant Potential 100 Energy Generation 105 Energy Capacity 1450 Matter Stores 494 Matter Capacity 700 Sight Range 22 Robot Scan Range 16 Terrain Scan Range 24 Terrain Scan Density 1210 Jamming Range 16 Cloak Strength 2 Corruption Containment 12 Armor Coverage 1600 Resistance: EM 100 Utility Shielding 90 Weapon Shielding 66 Point Defense Rating 240 Phase Shifting 10 Evasion (%) 80 Targeting Accuracy 12 Target Analysis 10 Core Analysis 6 Recoil Reduction 6 Kinecelleration 40 Salvage Targeting 4 Offensive Hacking 14 Defensive Hacking 14 Authchip Count 2 Item Schematics ----------------- None Robot Schematics ------------------ None Fabricated ------------ Nothing Repaired ---------- Lgt. Treads | 40% | -10/Materials Studied --------- Quantum Reactor | -2/Section 7 | Hacked Enh. Nova Cannon | -2/Section 7 | Hacked Alien Tech Used ----------------- Integrated Dissipator Transdimensional Reconstructor Core Reset Matrix Integrated Mediator Core Membrane Integrated Reactor LRC Insulator LRC Energy Well LRC Armor Core Cannon Integrity Redistributor Subatomic Replicator Achievements -------------- Better Safe Than Exploded Hot Stuff Like A Rock Low-level Research Physics Hates This One Trick Superinsulated Tank Life Wiki Contributor Challenges ------------ None Game ------ Seed FlakFieldthrustCapacitor Manual? 0 Play Time 07:23:57 Cumulative 243.6 hours Start 2025.11.04 @ 00:29:19 End 2025.11.07 @ 02:55:03 Sessions 18 Manual Loads 0 Difficulty Rogue Special Mode None Game No. 70 Rogue 64 Adventurer 0 Explorer 6 Win Type - Total 13 Types 6/0/2/1/1/0/1/1/0/1 Lore% 80 Gallery% 73 Achievement% 56 Wizard Run 0 Options --------- Layout 1 ASCII 0 Keyboard 0 Movement Mouse Keybinds 0 Fullscreen 2 Font 24/Smallcaps Map View 50x35 Zoom Use 0% Tactical HUD 1 Map Filters NONE Filters NONE Steam 1 RUN: 21a6b46b-afeb-4aaa-96ea-1224b83111e8